Workbook

Sheet TR138
A1: Indication of FFR results for Tender Round 138, accepted tenders will be officially notified via an issued acceptance letter.
A2: Tender Ref | B2: Status | C2: Rejection Code | D2: Company Name | E2: Tendered Unit (BMU/Unit ID) | F2: TO connection / DNO connection | G2: Generation Type | H2: Start Date | I2: End Date | J2: Tendered Period (dd.mm.yy - dd.mm.yy) | K2: Applicable FFR Capability Data Table | L2: Tendered Frames per Service Day | U2: Tendered Prices*** | X2: BMUs Only - Applicable Balancing Service (i.e. ABSVD Imbalance) YES/NO | Y2: Dynamic Providers Only | AC2: Dynamic Providers only | AJ2: Please indicate as per detail change provision if you are adding volume | AK2: Please state the accepted tender that you are stacking onto | AL2: Please state if this is an all or nothing bid. Clearly reference what lines are included in each all or nothing bid | AM2: Please indicate if this is a mutually exclusive tender | AN2: Non-Dynamic Providers | AP2: Comments
L3: Working Days (Mon-Fri) | O3: Saturdays | R3: Sundays/Bank Holidays | U3: Availability Fee (£/h) | V3: Nomination Fee (£/h) | W3: Window Initiation Fee (£/window) | Y3: Maximum Part Load Point (MW) | Z3: Minimum Part Load Point (MW) | AA3: Minimum MEL (MW) | AB3: Maximum SEL (MW) | AN3: Volume of Response Tendered
L4: From | M4: To | N4: Duration (h) | O4: From | P4: To | Q4: Duration (h) | R4: From | S4: To | T4: Duration (h) | AC4: Primary Response (max.) @ 0.2Hz (MW) | AD4: Primary Response (max.) @ 0.5Hz (MW) | AE4: Primary Response (max.) @ 0.8Hz (MW) | AF4: Secondary Response (max.) @ 0.2/0.2Hz (MW) | AG4: Secondary Response (max.) @ 0.5/0.5Hz (MW) | AH4: High Frequency Response (max.) @ 0.2Hz (MW) | AI4: High Frequency Response (max.) @ 0.5Hz (MW) | AN4: Automatic Response Energy Deliverable by 10s (MW) | AO4: Automatic Response Energy Deliverable by 30s (MW)
A5: 138 | D5: Example Company | E5: Ex-FFR-1 | F5: TO connection | G5: Wind | H5: =#REF! ->  | I5: =#REF! ->  | J5: =IFERROR(TEXT(H5,"DD.MM.YY")&" - "&TEXT(I5,"DD.MM.YY")&" ("&DATEDIF(H5,I5+1,"m")&" months)","Tender End Date is Before Start Date") -> Tender End Date is Before Start Date | K5: As per FFR framework agreement | L5: 2300 | M5: 700 | N5: =IF(L5>M5, (2400-L5+M5)/100, IF(AND(L5="",M5="",L5=M5), "", IF(L5=M5,24,(M5-L5)/100))) -> 8 | O5: 2300 | P5: 700 | Q5: =IF(O5>P5, (2400-O5+P5)/100, IF(AND(O5="",P5="",O5=P5), "", IF(O5=P5,24,(P5-O5)/100))) -> 8 | R5: 2300 | S5: 700 | T5: =IF(R5>S5, (2400-R5+S5)/100, IF(AND(R5="",S5="",R5=S5), "", IF(R5=S5,24,(S5-R5)/100))) -> 8 | U5: 100 | V5: 600 | W5: - | X5: - | Y5: - | Z5: - | AA5: - | AB5: - | AC5: - | AD5: - | AE5: - | AF5: - | AG5: - | AH5: - | AI5: - | AJ5: - | AK5: - | AN5: - | AO5: - | AP5: -
A6: 136 | D6: Example Company | E6: =E5 -> Ex-FFR-1 | F6: DNO connection | G6: Gas | H6: =H5 ->  | I6: =I5 ->  | J6: =IFERROR(TEXT(H6,"DD.MM.YY")&" - "&TEXT(I6,"DD.MM.YY")&" ("&DATEDIF(H6,I6+1,"m")&" months)","Tender End Date is Before Start Date") -> Tender End Date is Before Start Date | K6: As per FFR framework agreement | L6: 700 | M6: 2300 | N6: 16 | O6: 700 | P6: 2300 | Q6: 16 | R6: 700 | S6: 2300 | T6: 16 | U6: 600 | V6: 100 | W6: - | X6: - | Y6: - | Z6: - | AA6: - | AB6: - | AC6: - | AD6: - | AE6: - | AF6: - | AG6: - | AH6: - | AI6: - | AJ6: - | AK6: - | AN6: - | AO6: - | AP6: -
A7: =A5+0.001 -> 138.001 | B7: Rejected | C7: 2 | D7: OSSPV001 LIMITED | E7: ARNKB-2 | F7: DNO connection | G7: Battery | H7: 2021-06-30 | I7: 2021-07-31 | J7: 30.06.21 - 31.07.21 (1 months) | K7: As per FFR framework agreement | L7: 2300 | M7: 2300 | N7: =IF(L7>M7, (2400-L7+M7)/100, IF(AND(L7="",M7="",L7=M7), "", IF(L7=M7,24,(M7-L7)/100))) -> 24 | O7: 2300 | P7: 2300 | Q7: =IF(O7>P7, (2400-O7+P7)/100, IF(AND(O7="",P7="",O7=P7), "", IF(O7=P7,24,(P7-O7)/100))) -> 24 | R7: 2300 | S7: 2300 | T7: =IF(R7>S7, (2400-R7+S7)/100, IF(AND(R7="",S7="",R7=S7), "", IF(R7=S7,24,(S7-R7)/100))) -> 24 | U7: 184.32 | X7: N/A | AC7: 3.6 | AD7: 9 | AE7: 9 | AF7: 3.6 | AG7: 9 | AH7: 3.6 | AI7: 9
A8: =A7+0.001 -> 138.002 | B8: Accepted | C8: NA | D8: BALANCE POWER | E8: IPSWA-1 | F8: DNO connection | G8: Bio Fuel | H8: 2021-07-01 | I8: 2021-07-31 | J8: =IFERROR(TEXT(H8,"DD.MM.YY")&" - "&TEXT(I8,"DD.MM.YY")&" ("&DATEDIF(H8,I8+1,"m")&" months)","Tender End Date is Before Start Date") -> 01.07.21 - 31.07.21 (1 months) | K8: As per FFR framework agreement | L8: 700 | M8: 1500 | N8: =IF(L8>M8, (2400-L8+M8)/100, IF(AND(L8="",M8="",L8=M8), "", IF(L8=M8,24,(M8-L8)/100))) -> 8 | O8: 700 | P8: 1500 | Q8: =IF(O8>P8, (2400-O8+P8)/100, IF(AND(O8="",P8="",O8=P8), "", IF(O8=P8,24,(P8-O8)/100))) -> 8 | R8: 700 | S8: 1500 | T8: =IF(R8>S8, (2400-R8+S8)/100, IF(AND(R8="",S8="",R8=S8), "", IF(R8=S8,24,(S8-R8)/100))) -> 8 | U8: 60 | AO8: 20
A9: 138.003 | B9: Accepted | C9: NA | D9: EQUIVALENCE ENERGY | E9: IPSWB-1 | F9: DNO connection | G9: Bio Fuel | H9: 2021-07-01 | I9: 2021-07-31 | J9: 01.07.21 - 31.07.21 (1 months) | K9: As per FFR framework agreement | L9: 700 | M9: 1500 | N9: =IF(L9>M9, (2400-L9+M9)/100, IF(AND(L9="",M9="",L9=M9), "", IF(L9=M9,24,(M9-L9)/100))) -> 8 | O9: 700 | P9: 1500 | Q9: =IF(O9>P9, (2400-O9+P9)/100, IF(AND(O9="",P9="",O9=P9), "", IF(O9=P9,24,(P9-O9)/100))) -> 8 | R9: 700 | S9: 1500 | T9: =IF(R9>S9, (2400-R9+S9)/100, IF(AND(R9="",S9="",R9=S9), "", IF(R9=S9,24,(S9-R9)/100))) -> 8 | U9: 59.8 | AO9: 20
A10: 138.004 | B10: Accepted | C10: NA | D10: BALANCE POWER | E10: IPSWA-1 | F10: DNO connection | G10: Bio Fuel | H10: 2021-07-01 | I10: 2021-07-31 | J10: 01.07.21 - 31.07.21 (1 months) | K10: As per FFR framework agreement | L10: 1500 | M10: 2300 | N10: 8 | O10: 1500 | P10: 2300 | Q10: 8 | R10: 1500 | S10: 2300 | T10: 8 | U10: 59.6 | AO10: 20
A11: 138.005 | B11: Accepted | C11: NA | D11: EQUIVALENCE ENERGY | E11: IPSWB-1 | F11: DNO connection | G11: Bio Fuel | H11: 2021-07-01 | I11: 2021-07-31 | J11: 01.07.21 - 31.07.21 (1 months) | K11: As per FFR framework agreement | L11: 1500 | M11: 2300 | N11: 8 | O11: 1500 | P11: 2300 | Q11: 8 | R11: 1500 | S11: 2300 | T11: 8 | U11: 59.4 | AO11: 20
A12: 138.006 | B12: Rejected | C12: 4 | D12: REstore Flexpond UK Ltd | E12: REST-1 | F12: DNO connection | G12: Multiple Fuel Type | H12: 2021-06-30 | I12: 2021-07-31 | J12: 30.06.21 - 31.07.21 (1 months) | K12: As per FFR framework agreement | L12: 2300 | M12: 1500 | N12: =IF(L12>M12, (2400-L12+M12)/100, IF(AND(L12="",M12="",L12=M12), "", IF(L12=M12,24,(M12-L12)/100))) -> 16 | O12: 2300 | P12: 1500 | Q12: =IF(O12>P12, (2400-O12+P12)/100, IF(AND(O12="",P12="",O12=P12), "", IF(O12=P12,24,(P12-O12)/100))) -> 16 | R12: 2300 | S12: 1500 | T12: =IF(R12>S12, (2400-R12+S12)/100, IF(AND(R12="",S12="",R12=S12), "", IF(R12=S12,24,(S12-R12)/100))) -> 16 | U12: 165.92 | AC12: 6.4 | AD12: 16 | AE12: 16 | AF12: 6.4 | AG12: 16 | AH12: 6.4 | AI12: 16 | AL12: A | AM12: Mutually Exclusive to C
A13: 138.007 | B13: Rejected | C13: 4 | D13: REstore Flexpond UK Ltd | E13: REST-1 | F13: DNO connection | G13: Multiple Fuel Type | H13: 2021-07-01 | I13: 2021-07-31 | J13: 01.07.21 - 31.07.21 (1 months) | K13: As per FFR framework agreement | L13: 1500 | M13: 2300 | N13: =IF(L13>M13, (2400-L13+M13)/100, IF(AND(L13="",M13="",L13=M13), "", IF(L13=M13,24,(M13-L13)/100))) -> 8 | O13: 1500 | P13: 2300 | Q13: =IF(O13>P13, (2400-O13+P13)/100, IF(AND(O13="",P13="",O13=P13), "", IF(O13=P13,24,(P13-O13)/100))) -> 8 | R13: 1500 | S13: 2300 | T13: =IF(R13>S13, (2400-R13+S13)/100, IF(AND(R13="",S13="",R13=S13), "", IF(R13=S13,24,(S13-R13)/100))) -> 8 | U13: 176.16 | AC13: 6.4 | AD13: 16 | AE13: 16 | AF13: 6.4 | AG13: 16 | AH13: 6.4 | AI13: 16 | AL13: B | AM13: Mutually Exclusive to C
A14: 138.008 | B14: Accepted | C14: NA | D14: REstore Flexpond UK Ltd | E14: REST-1 | F14: DNO connection | G14: Multiple Fuel Type | H14: 2021-06-30 | I14: 2021-07-31 | J14: 30.06.21 - 31.07.21 (1 months) | K14: As per FFR framework agreement | L14: 2300 | M14: 2300 | N14: 24 | O14: 2300 | P14: 2300 | Q14: 24 | R14: 2300 | S14: 2300 | T14: 24 | U14: 169.28 | AC14: 6.4 | AD14: 16 | AE14: 16 | AF14: 6.4 | AG14: 16 | AH14: 6.4 | AI14: 16 | AL14: C | AM14: Mutually Exclusive to A + B
A15: 138.009 | B15: Accepted | C15: NA | D15: Centrica Business Solutions Optimisation UK Ltd | E15: CBS0-1 | F15: DNO connection | G15: DSF: Distributed generation (onsite) | H15: 2021-07-01 | I15: 2021-07-31 | J15: 01.07.21 - 31.07.21 (1 months) | K15: As per FFR framework agreement | L15: 700 | M15: 2300 | N15: 16 | O15: 700 | P15: 2300 | Q15: 16 | R15: 700 | S15: 2300 | T15: 16 | U15: 3.98 | AO15: 2
A16: 138.01 | B16: Accepted | C16: NA | D16: City Energy Management Services Ltd. | E16: CMFH-1 | F16: DNO connection | G16: DSF: Load response | H16: 2021-07-01 | I16: 2021-07-31 | J16: 01.07.21 - 31.07.21 (1 months) | K16: As per FFR framework agreement | L16: 700 | M16: 1100 | N16: =IF(L16>M16, (2400-L16+M16)/100, IF(AND(L16="",M16="",L16=M16), "", IF(L16=M16,24,(M16-L16)/100))) -> 4 | O16: 700 | P16: 1100 | Q16: =IF(O16>P16, (2400-O16+P16)/100, IF(AND(O16="",P16="",O16=P16), "", IF(O16=P16,24,(P16-O16)/100))) -> 4 | R16: 700 | S16: 1100 | T16: =IF(R16>S16, (2400-R16+S16)/100, IF(AND(R16="",S16="",R16=S16), "", IF(R16=S16,24,(S16-R16)/100))) -> 4 | U16: 1.39 | AO16: 1
A17: 138.011 | B17: Accepted | C17: NA | D17: City Energy Management Services Ltd. | E17: CMFH-1 | F17: DNO connection | G17: DSF: Load response | H17: 2021-07-01 | I17: 2021-07-31 | J17: 01.07.21 - 31.07.21 (1 months) | K17: As per FFR framework agreement | L17: 1100 | M17: 1500 | N17: =IF(L17>M17, (2400-L17+M17)/100, IF(AND(L17="",M17="",L17=M17), "", IF(L17=M17,24,(M17-L17)/100))) -> 4 | O17: 1100 | P17: 1500 | Q17: =IF(O17>P17, (2400-O17+P17)/100, IF(AND(O17="",P17="",O17=P17), "", IF(O17=P17,24,(P17-O17)/100))) -> 4 | R17: 1100 | S17: 1500 | T17: =IF(R17>S17, (2400-R17+S17)/100, IF(AND(R17="",S17="",R17=S17), "", IF(R17=S17,24,(S17-R17)/100))) -> 4 | U17: 2.75 | AO17: 2
A18: 138.012 | B18: Accepted | C18: NA | D18: City Energy Management Services Ltd. | E18: CMFH-1 | F18: DNO connection | G18: DSF: Load response | H18: 2021-07-01 | I18: 2021-07-31 | J18: 01.07.21 - 31.07.21 (1 months) | K18: As per FFR framework agreement | L18: 1900 | M18: 2300 | N18: 4 | O18: 1900 | P18: 2300 | Q18: 4 | R18: 1900 | S18: 2300 | T18: 4 | U18: 1.39 | AO18: 2
A19: 138.013 | B19: Accepted | C19: NA | D19: City Energy Management Services Ltd. | E19: CMFH-2 | F19: DNO connection | G19: DSF: Load response | H19: 2021-07-01 | I19: 2021-07-31 | J19: 01.07.21 - 31.07.21 (1 months) | K19: As per FFR framework agreement | L19: 700 | M19: 1500 | N19: 8 | O19: 700 | P19: 1500 | Q19: 8 | R19: 700 | S19: 1500 | T19: 8 | U19: 1.39 | AO19: 1
A20: 138.014 | B20: Accepted | C20: NA | D20: City Energy Management Services Ltd. | E20: CMFH-2 | F20: DNO connection | G20: DSF: Load response | H20: 2021-07-01 | I20: 2021-07-31 | J20: 01.07.21 - 31.07.21 (1 months) | K20: As per FFR framework agreement | L20: 1900 | M20: 2300 | N20: 4 | O20: 1900 | P20: 2300 | Q20: 4 | R20: 1900 | S20: 2300 | T20: 4 | U20: 1.39 | AO20: 1
A21: 138.015 | B21: Accepted | C21: NA | D21: Drax Power Limited | E21: DRAX_01Z | F21: TO connection | G21: Bio Fuel | H21: 2021-06-30 | I21: 2021-07-31 | J21: 30.06.21 - 31.07.21 (1 months) | K21: As per FFR framework agreement | L21: 2300 | M21: 2300 | N21: =IF(L21>M21, (2400-L21+M21)/100, IF(AND(L21="",M21="",L21=M21), "", IF(L21=M21,24,(M21-L21)/100))) -> 24 | O21: 2300 | P21: 2300 | Q21: =IF(O21>P21, (2400-O21+P21)/100, IF(AND(O21="",P21="",O21=P21), "", IF(O21=P21,24,(P21-O21)/100))) -> 24 | R21: 2300 | S21: 2300 | T21: =IF(R21>S21, (2400-R21+S21)/100, IF(AND(R21="",S21="",R21=S21), "", IF(R21=S21,24,(S21-R21)/100))) -> 24 | U21: 194 | V21: 0 | X21: YES | Y21: 660 | Z21: 420 | AA21: 420 | AB21: 400 | AC21: 0 | AD21: 0 | AE21: 0 | AF21: 0 | AG21: 0 | AH21: 24 | AI21: 68 | AJ21: No | AK21: n/a | AM21: n/a
A22: 138.016 | B22: Rejected | C22: 2 | D22: EDF Energy Customers Limited | E22: EDFE-4 | F22: DNO connection | G22: DSF: Storage (for export) | H22: 2021-06-30 | I22: 2021-07-31 | J22: 30.06.21 - 31.07.21 (1 months) | K22: As per FFR framework agreement | L22: 2300 | M22: 2300 | N22: 24 | O22: 2300 | P22: 2300 | Q22: 24 | R22: 2300 | S22: 2300 | T22: 24 | U22: 114 | AC22: 2.4 | AD22: 6 | AE22: 6 | AF22: 2.4 | AG22: 6 | AH22: 2.4 | AI22: 6
A23: 138.017 | B23: Rejected | C23: 2 | D23: EDF Energy Customers Limited | E23: AG -GEDF01 | F23: DNO connection | G23: DSF: Storage (for export) | H23: 2021-06-30 | I23: 2021-07-31 | J23: 30.06.21 - 31.07.21 (1 months) | K23: As per FFR framework agreement | L23: 2300 | M23: 2300 | N23: 24 | O23: 2300 | P23: 2300 | Q23: 24 | R23: 2300 | S23: 2300 | T23: 24 | U23: 382 | AC23: 8 | AD23: 20 | AE23: 20 | AF23: 8 | AG23: 20 | AH23: 8 | AI23: 20
A24: 138.018 | B24: Rejected | C24: 2 | D24: EDF Energy Customers Limited | E24: AG -GEDF02 | F24: DNO connection | G24: DSF: Storage (for export) | H24: 2021-06-30 | I24: 2021-07-31 | J24: 30.06.21 - 31.07.21 (1 months) | K24: As per FFR framework agreement | L24: 2300 | M24: 2300 | N24: 24 | O24: 2300 | P24: 2300 | Q24: 24 | R24: 2300 | S24: 2300 | T24: 24 | U24: 381 | AC24: 8 | AD24: 20 | AE24: 20 | AF24: 8 | AG24: 20 | AH24: 8 | AI24: 20
A25: 138.019 | B25: Rejected | C25: 2 | D25: EDF Energy Customers Limited | E25: EDFE-2 | F25: DNO connection | G25: DSF: Storage (for export) | H25: 2021-06-30 | I25: 2021-07-31 | J25: 30.06.21 - 31.07.21 (1 months) | K25: As per FFR framework agreement | L25: 2300 | M25: 2300 | N25: 24 | O25: 2300 | P25: 2300 | Q25: 24 | R25: 2300 | S25: 2300 | T25: 24 | U25: 144 | AC25: 3.2 | AD25: 8 | AE25: 8 | AF25: 3.2 | AG25: 8 | AH25: 3.2 | AI25: 8
A26: 138.02 | B26: Rejected | C26: 2 | D26: EDF Energy Customers Limited | E26: AG-AEDF02 | F26: DNO connection | G26: DSF: Storage (for export) | H26: 2021-06-30 | I26: 2021-07-31 | J26: 30.06.21 - 31.07.21 (1 months) | K26: As per FFR framework agreement | L26: 2300 | M26: 2300 | N26: 24 | O26: 2300 | P26: 2300 | Q26: 24 | R26: 2300 | S26: 2300 | T26: 24 | U26: 912 | AC26: 19.6 | AD26: 49 | AE26: 49 | AF26: 19.6 | AG26: 49 | AH26: 15.6 | AI26: 39
A27: =A26+0.001 -> 138.021 | B27: Accepted | C27: NA | D27: EDF Energy Customers Limited | E27: EDFE-8 | F27: DNO connection | G27: DSF: Storage (for export) | H27: 2021-06-30 | I27: 2021-07-31 | J27: 30.06.21 - 31.07.21 (1 months) | K27: As per FFR framework agreement | L27: 2300 | M27: 700 | N27: 8 | O27: 2300 | P27: 700 | Q27: 8 | R27: 2300 | S27: 700 | T27: 8 | U27: 220 | AC27: 8 | AD27: 20 | AE27: 20 | AF27: 8 | AG27: 20 | AH27: 8 | AI27: 20 | AL27: A
A28: =A27+0.001 -> 138.022 | B28: Accepted | C28: NA | D28: EDF Energy Customers Limited | E28: EDFE-8 | F28: DNO connection | G28: DSF: Storage (for export) | H28: 2021-07-01 | I28: 2021-07-31 | J28: 01.07.21 - 31.07.21 (1 months) | K28: As per FFR framework agreement | L28: 700 | M28: 1500 | N28: 8 | O28: 700 | P28: 1500 | Q28: 8 | R28: 700 | S28: 1500 | T28: 8 | U28: 232 | AC28: 8 | AD28: 20 | AE28: 20 | AF28: 8 | AG28: 20 | AH28: 8 | AI28: 20 | AL28: A
A29: =A28+0.001 -> 138.023 | B29: Accepted | C29: NA | D29: EDF Energy Customers Limited | E29: EDFE-8 | F29: DNO connection | G29: DSF: Storage (for export) | H29: 2021-07-01 | I29: 2021-07-31 | J29: 01.07.21 - 31.07.21 (1 months) | K29: As per FFR framework agreement | L29: 1500 | M29: 2300 | N29: 8 | O29: 1500 | P29: 2300 | Q29: 8 | R29: 1500 | S29: 2300 | T29: 8 | U29: 235 | AC29: 8 | AD29: 20 | AE29: 20 | AF29: 8 | AG29: 20 | AH29: 8 | AI29: 20 | AL29: A
A30: =A29+0.001 -> 138.024 | B30: Accepted | C30: NA | D30: First Renewable Alpha Limited | E30: TREGN-1 | F30: DNO connection | G30: Diesel | H30: 2021-07-01 | I30: 2021-07-31 | J30: 01.07.21 - 31.07.21 (1 months) | K30: AS per FFR framework agreement | L30: 700 | M30: 1500 | N30: =IF(L30>M30, (2400-L30+M30)/100, IF(AND(L30="",M30="",L30=M30), "", IF(L30=M30,24,(M30-L30)/100))) -> 8 | O30: 700 | P30: 1500 | Q30: =IF(O30>P30, (2400-O30+P30)/100, IF(AND(O30="",P30="",O30=P30), "", IF(O30=P30,24,(P30-O30)/100))) -> 8 | R30: 700 | S30: 1500 | T30: =IF(R30>S30, (2400-R30+S30)/100, IF(AND(R30="",S30="",R30=S30), "", IF(R30=S30,24,(S30-R30)/100))) -> 8 | U30: 40 | AO30: 20
A31: =A30+0.001 -> 138.025 | B31: Accepted | C31: NA | D31: First Renewable Alpha Limited | E31: TREGN-1 | F31: DNO connection | G31: Diesel | H31: 2021-07-01 | I31: 2021-07-31 | J31: 01.07.21 - 31.07.21 (1 months) | K31: As per FFR framework agreement | L31: 1500 | M31: 2300 | N31: =IF(L31>M31, (2400-L31+M31)/100, IF(AND(L31="",M31="",L31=M31), "", IF(L31=M31,24,(M31-L31)/100))) -> 8 | O31: 1500 | P31: 2300 | Q31: =IF(O31>P31, (2400-O31+P31)/100, IF(AND(O31="",P31="",O31=P31), "", IF(O31=P31,24,(P31-O31)/100))) -> 8 | R31: 1500 | S31: 2300 | T31: =IF(R31>S31, (2400-R31+S31)/100, IF(AND(R31="",S31="",R31=S31), "", IF(R31=S31,24,(S31-R31)/100))) -> 8 | U31: 35 | AO31: 20
A32: 138.026 | B32: Rejected | C32: 2 | D32: Flexitricity Limited | E32: AG-EFLX01 | F32: DNO connection | G32: DSF: Storage (for export) | H32: 2021-06-30 | I32: 2021-07-31 | J32: 30.06.21 - 31.07.21 (1 months) | K32: As per FFR framework agreement | L32: 2300 | M32: 2300 | N32: =IF(L32>M32, (2400-L32+M32)/100, IF(AND(L32="",M32="",L32=M32), "", IF(L32=M32,24,(M32-L32)/100))) -> 24 | O32: 2300 | P32: 2300 | Q32: =IF(O32>P32, (2400-O32+P32)/100, IF(AND(O32="",P32="",O32=P32), "", IF(O32=P32,24,(P32-O32)/100))) -> 24 | R32: 2300 | S32: 2300 | T32: =IF(R32>S32, (2400-R32+S32)/100, IF(AND(R32="",S32="",R32=S32), "", IF(R32=S32,24,(S32-R32)/100))) -> 24 | U32: 377.53 | X32: YES | AC32: 7.6 | AD32: 19 | AE32: 19 | AF32: 7.6 | AG32: 19 | AH32: 7.6 | AI32: 19
A33: 138.027 | B33: Rejected | C33: 2 | D33: Flexitricity Limited | E33: AG-BFLX01 | F33: DNO connection | G33: DSF: Storage (for export) | H33: 2021-06-30 | I33: 2021-07-31 | J33: 30.06.21 - 31.07.21 (1 months) | K33: As per FFR framework agreement | L33: 2300 | M33: 2300 | N33: =IF(L33>M33, (2400-L33+M33)/100, IF(AND(L33="",M33="",L33=M33), "", IF(L33=M33,24,(M33-L33)/100))) -> 24 | O33: 2300 | P33: 2300 | Q33: =IF(O33>P33, (2400-O33+P33)/100, IF(AND(O33="",P33="",O33=P33), "", IF(O33=P33,24,(P33-O33)/100))) -> 24 | R33: 2300 | S33: 2300 | T33: =IF(R33>S33, (2400-R33+S33)/100, IF(AND(R33="",S33="",R33=S33), "", IF(R33=S33,24,(S33-R33)/100))) -> 24 | U33: 140.14 | X33: YES | AC33: 2.8 | AD33: 7 | AE33: 7 | AF33: 2.8 | AG33: 7 | AH33: 2.8 | AI33: 7
A34: 138.028 | B34: Rejected | C34: 2 | D34: Flexitricity Limited | E34: AG-MFLX02 | F34: DNO connection | G34: DSF: Storage (for export) | H34: 2021-06-30 | I34: 2021-07-31 | J34: 30.06.21 - 31.07.21 (1 months) | K34: As per FFR framework agreement | L34: 2300 | M34: 2300 | N34: 24 | O34: 2300 | P34: 2300 | Q34: 24 | R34: 2300 | S34: 2300 | T34: 24 | U34: 953.05 | X34: YES | AC34: 19.96 | AD34: 49 | AE34: 49 | AF34: 19.96 | AG34: 49 | AH34: 19.96 | AI34: 49
A35: 138.029 | B35: Rejected | C35: 2 | D35: Flexitricity Limited | E35: AG-FLX00L | F35: DNO connection | G35: DSF: Storage (for export) | H35: 2021-06-30 | I35: 2021-07-31 | J35: 30.06.21 - 31.07.21 (1 months) | K35: As per FFR framework agreement | L35: 2300 | M35: 2300 | N35: 24 | O35: 2300 | P35: 2300 | Q35: 24 | R35: 2300 | S35: 2300 | T35: 24 | U35: 80.36 | X35: YES | AC35: 1.6 | AD35: 4 | AE35: 4 | AF35: 1.6 | AG35: 4 | AH35: 1.6 | AI35: 4
A36: 138.03 | B36: Rejected | C36: 2 | D36: Flexitricity Limited | E36: AG-BFLX02 | F36: DNO connection | G36: DSF: Storage (for export) | H36: 2021-06-30 | I36: 2021-07-31 | J36: 30.06.21 - 31.07.21 (1 months) | K36: As per FFR framework agreement | L36: 2300 | M36: 2300 | N36: 24 | O36: 2300 | P36: 2300 | Q36: 24 | R36: 2300 | S36: 2300 | T36: 24 | U36: 199.3 | X36: YES | AC36: 4 | AD36: 10 | AE36: 10 | AF36: 4 | AG36: 10 | AH36: 4 | AI36: 10
A37: 138.031 | B37: Accepted | C37: NA | D37: GridBeyond Limited | E37: GBND-2 | F37: DNO connection | G37: DSF: Load response | H37: 2021-06-30 | I37: 2021-07-31 | J37: 30.06.21 - 31.07.21 (1 months) | K37: As per FFR framework agreement | L37: 2300 | M37: 700 | N37: =IF(L37>M37, (2400-L37+M37)/100, IF(AND(L37="",M37="",L37=M37), "", IF(L37=M37,24,(M37-L37)/100))) -> 8 | Q37: =IF(O37>P37, (2400-O37+P37)/100, IF(AND(O37="",P37="",O37=P37), "", IF(O37=P37,24,(P37-O37)/100))) ->  | T37: =IF(R37>S37, (2400-R37+S37)/100, IF(AND(R37="",S37="",R37=S37), "", IF(R37=S37,24,(S37-R37)/100))) ->  | U37: 280.8 | AC37: 11.2 | AD37: 28 | AE37: 28 | AF37: 11.2 | AG37: 28 | AH37: 6.4 | AI37: 16 | AL37: A
A38: 138.032 | B38: Accepted | C38: NA | D38: GridBeyond Limited | E38: GBND-2 | F38: DNO connection | G38: DSF: Load response | H38: 2021-07-01 | I38: 2021-07-31 | J38: 01.07.21 - 31.07.21 (1 months) | K38: As per FFR framework agreement | L38: 700 | M38: 1500 | N38: =IF(L38>M38, (2400-L38+M38)/100, IF(AND(L38="",M38="",L38=M38), "", IF(L38=M38,24,(M38-L38)/100))) -> 8 | Q38: =IF(O38>P38, (2400-O38+P38)/100, IF(AND(O38="",P38="",O38=P38), "", IF(O38=P38,24,(P38-O38)/100))) ->  | T38: =IF(R38>S38, (2400-R38+S38)/100, IF(AND(R38="",S38="",R38=S38), "", IF(R38=S38,24,(S38-R38)/100))) ->  | U38: 276.9 | AC38: 11.2 | AD38: 28 | AE38: 28 | AF38: 11.2 | AG38: 28 | AH38: 6 | AI38: 15 | AL38: B
A39: 138.033 | B39: Accepted | C39: NA | D39: GridBeyond Limited | E39: GBND-2 | F39: DNO connection | G39: DSF: Load response | H39: 2021-07-01 | I39: 2021-07-31 | J39: 01.07.21 - 31.07.21 (1 months) | K39: As per FFR framework agreement | L39: 1500 | M39: 2300 | N39: 8 | U39: 245.7 | AC39: 10 | AD39: 25 | AE39: 25 | AF39: 10 | AG39: 25 | AH39: 5.2 | AI39: 13 | AL39: C
A40: 138.034 | B40: Accepted | C40: NA | D40: GridBeyond Limited | E40: GBND-2 | F40: DNO connection | G40: DSF: Load response | H40: 2021-06-30 | I40: 2021-07-31 | J40: 30.06.21 - 31.07.21 (1 months) | K40: As per FFR framework agreement | O40: 2300 | P40: 700 | Q40: 8 | U40: 191.1 | AC40: 6.8 | AD40: 17 | AE40: 17 | AF40: 6.8 | AG40: 17 | AH40: 6 | AI40: 15 | AL40: A
A41: 138.035 | B41: Accepted | C41: NA | D41: GridBeyond Limited | E41: GBND-2 | F41: DNO connection | G41: DSF: Load response | H41: 2021-07-01 | I41: 2021-07-31 | J41: 01.07.21 - 31.07.21 (1 months) | K41: As per FFR framework agreement | O41: 700 | P41: 1500 | Q41: 8 | U41: 167.7 | AC41: 5.6 | AD41: 14 | AE41: 14 | AF41: 5.6 | AG41: 14 | AH41: 6 | AI41: 15 | AL41: B
A42: 138.036 | B42: Accepted | C42: NA | D42: GridBeyond Limited | E42: GBND-2 | F42: DNO connection | G42: DSF: Load response | H42: 2021-07-01 | I42: 2021-07-31 | J42: 01.07.21 - 31.07.21 (1 months) | K42: As per FFR framework agreement | O42: 1500 | P42: 2300 | Q42: 8 | U42: 159.9 | AC42: 5.2 | AD42: 13 | AE42: 13 | AF42: 5.2 | AG42: 13 | AH42: 6 | AI42: 15 | AL42: C
A43: 138.037 | B43: Accepted | C43: NA | D43: GridBeyond Limited | E43: GBND-2 | F43: DNO connection | G43: DSF: Load response | H43: 2021-06-30 | I43: 2021-07-31 | J43: 30.06.21 - 31.07.21 (1 months) | K43: As per FFR framework agreement | R43: 2300 | S43: 700 | T43: 8 | U43: 148.2 | AC43: 4.8 | AD43: 12 | AE43: 12 | AF43: 4.8 | AG43: 12 | AH43: 5.6 | AI43: 14 | AL43: A
A44: 138.038 | B44: Accepted | C44: NA | D44: GridBeyond Limited | E44: GBND-2 | F44: DNO connection | G44: DSF: Load response | H44: 2021-07-01 | I44: 2021-07-31 | J44: 01.07.21 - 31.07.21 (1 months) | K44: As per FFR framework agreement | R44: 700 | S44: 1500 | T44: 8 | U44: 136.5 | AC44: 4.4 | AD44: 11 | AE44: 11 | AF44: 4.4 | AG44: 11 | AH44: 5.2 | AI44: 13 | AL44: B
A45: 138.039 | B45: Accepted | C45: NA | D45: GridBeyond Limited | E45: GBND-2 | F45: DNO connection | G45: DSF: Load response | H45: 2021-07-01 | I45: 2021-07-31 | J45: 01.07.21 - 31.07.21 (1 months) | K45: As per FFR framework agreement | R45: 1500 | S45: 2300 | T45: 8 | U45: 152.1 | AC45: 5.2 | AD45: 13 | AE45: 13 | AF45: 5.2 | AG45: 13 | AH45: 5.2 | AI45: 13 | AL45: C
A46: 138.04 | B46: Accepted | C46: NA | D46: GridBeyond Limited | E46: ENDSR-1 | F46: DNO connection | G46: DSF: Load response | H46: 2021-07-01 | I46: 2021-07-31 | J46: 01.07.21 - 31.07.21 (1 months) | K46: As per FFR framework agreement | L46: 700 | M46: 1100 | N46: 4 | O46: 700 | P46: 1100 | Q46: 4 | R46: 700 | S46: 1100 | T46: 4 | U46: 11.2 | AO46: 4
A47: 138.041 | B47: Accepted | C47: NA | D47: GridBeyond Limited | E47: ENDSR-1 | F47: DNO connection | G47: DSF: Load response | H47: 2021-07-01 | I47: 2021-07-31 | J47: 01.07.21 - 31.07.21 (1 months) | K47: As per FFR framework agreement | L47: 1100 | M47: 1500 | N47: 4 | O47: 1100 | P47: 1500 | Q47: 4 | R47: 1100 | S47: 1500 | T47: 4 | U47: 11.2 | AO47: 4
A48: 138.042 | B48: Accepted | C48: NA | D48: GridBeyond Limited | E48: ENDSR-1 | F48: DNO connection | G48: DSF: Load response | H48: 2021-07-01 | I48: 2021-07-31 | J48: 01.07.21 - 31.07.21 (1 months) | K48: As per FFR framework agreement | L48: 1500 | M48: 2300 | N48: 8 | O48: 1500 | P48: 2300 | Q48: 8 | R48: 1500 | S48: 2300 | T48: 8 | U48: 11.2 | AO48: 4
A49: 138.043 | B49: Accepted | C49: NA | D49: GridBeyond Limited | E49: ENDSR-2 | F49: DNO connection | G49: DSF: Load response | H49: 2021-07-01 | I49: 2021-07-31 | J49: 01.07.21 - 31.07.21 (1 months) | K49: As per FFR framework agreement | L49: 700 | M49: 1100 | N49: 4 | O49: 700 | P49: 1100 | Q49: 4 | R49: 700 | S49: 1100 | T49: 4 | U49: 12 | AO49: 4
A50: 138.044 | B50: Accepted | C50: NA | D50: GridBeyond Limited | E50: ENDSR-2 | F50: DNO connection | G50: DSF: Load response | H50: 2021-07-01 | I50: 2021-07-31 | J50: 01.07.21 - 31.07.21 (1 months) | K50: As per FFR framework agreement | L50: 1100 | M50: 1500 | N50: 4 | O50: 1100 | P50: 1500 | Q50: 4 | R50: 1100 | S50: 1500 | T50: 4 | U50: 12 | AO50: 4
A51: 138.045 | B51: Accepted | C51: NA | D51: GridBeyond Limited | E51: ENDSR-2 | F51: DNO connection | G51: DSF: Load response | H51: 2021-07-01 | I51: 2021-07-31 | J51: 01.07.21 - 31.07.21 (1 months) | K51: As per FFR framework agreement | L51: 1500 | M51: 2300 | N51: 8 | O51: 1500 | P51: 2300 | Q51: 8 | R51: 1500 | S51: 2300 | T51: 8 | U51: 12 | AO51: 4
A52: 138.046 | B52: Accepted | C52: NA | D52: GridBeyond Limited | E52: ENDSR-4 | F52: DNO connection | G52: DSF: Load response | H52: 2021-07-01 | I52: 2021-07-31 | J52: 01.07.21 - 31.07.21 (1 months) | K52: As per FFR framework agreement | L52: 700 | M52: 1100 | N52: 4 | O52: 700 | P52: 1100 | Q52: 4 | R52: 700 | S52: 1100 | T52: 4 | U52: 16 | AO52: 5
A53: 138.047 | B53: Accepted | C53: NA | D53: GridBeyond Limited | E53: ENDSR-4 | F53: DNO connection | G53: DSF: Load response | H53: 2021-07-01 | I53: 2021-07-31 | J53: 01.07.21 - 31.07.21 (1 months) | K53: As per FFR framework agreement | L53: 1100 | M53: 1500 | N53: 4 | O53: 1100 | P53: 1500 | Q53: 4 | R53: 1100 | S53: 1500 | T53: 4 | U53: 16 | AO53: 5
A54: 138.048 | B54: Accepted | C54: NA | D54: GridBeyond Limited | E54: ENDSR-4 | F54: DNO connection | G54: DSF: Load response | H54: 2021-07-01 | I54: 2021-07-31 | J54: 01.07.21 - 31.07.21 (1 months) | K54: As per FFR framework agreement | L54: 1500 | M54: 2300 | N54: 8 | O54: 1500 | P54: 2300 | Q54: 8 | R54: 1500 | S54: 2300 | T54: 8 | U54: 16 | AO54: 5
A55: 138.049 | B55: Accepted | C55: NA | D55: GridBeyond Limited | E55: ENDSR-3 | F55: DNO connection | G55: DSF: Load response | H55: 2021-07-01 | I55: 2021-07-31 | J55: 01.07.21 - 31.07.21 (1 months) | K55: As per FFR framework agreement | L55: 700 | M55: 1100 | N55: 4 | O55: 700 | P55: 1100 | Q55: 4 | R55: 700 | S55: 1100 | T55: 4 | U55: 17 | AO55: 5
A56: 138.05 | B56: Accepted | C56: NA | D56: GridBeyond Limited | E56: ENDSR-3 | F56: DNO connection | G56: DSF: Load response | H56: 2021-07-01 | I56: 2021-07-31 | J56: 01.07.21 - 31.07.21 (1 months) | K56: As per FFR framework agreement | L56: 1100 | M56: 1500 | N56: 4 | O56: 1100 | P56: 1500 | Q56: 4 | R56: 1100 | S56: 1500 | T56: 4 | U56: 20.4 | AO56: 6
A57: 138.051 | B57: Accepted | C57: NA | D57: GridBeyond Limited | E57: ENDSR-3 | F57: DNO connection | G57: DSF: Load response | H57: 2021-07-01 | I57: 2021-07-31 | J57: 01.07.21 - 31.07.21 (1 months) | K57: As per FFR framework agreement | L57: 1500 | M57: 2300 | N57: 8 | O57: 1500 | P57: 2300 | Q57: 8 | R57: 1500 | S57: 2300 | T57: 8 | U57: 17 | AO57: 5
A58: 138.052 | B58: Rejected | C58: 2 | D58: Habitat Energy Limited | E58: HAB2-FFR | F58: DNO connection | G58: DSF: Storage (for export) | H58: 2021-06-30 | I58: 2021-07-31 | J58: 30.06.21 - 31.07.21 (1 months) | K58: As per FFR framework agreement | L58: 2300 | M58: 2300 | N58: =IF(L58>M58, (2400-L58+M58)/100, IF(AND(L58="",M58="",L58=M58), "", IF(L58=M58,24,(M58-L58)/100))) -> 24 | O58: 2300 | P58: 2300 | Q58: =IF(O58>P58, (2400-O58+P58)/100, IF(AND(O58="",P58="",O58=P58), "", IF(O58=P58,24,(P58-O58)/100))) -> 24 | R58: 2300 | S58: 2300 | T58: =IF(R58>S58, (2400-R58+S58)/100, IF(AND(R58="",S58="",R58=S58), "", IF(R58=S58,24,(S58-R58)/100))) -> 24 | U58: 90.5 | V58: - | W58: - | AC58: 2 | AD58: 5 | AE58: 5 | AF58: 2 | AG58: 5 | AH58: 2 | AI58: 5
A59: 138.053 | B59: Rejected | C59: 2 | D59: Habitat Energy Limited | E59: HAB3-FFR | F59: DNO connection | G59: DSF: Storage (for export) | H59: 2021-06-30 | I59: 2021-07-31 | J59: 30.06.21 - 31.07.21 (1 months) | K59: As per FFR framework agreement | L59: 2300 | M59: 2300 | N59: =IF(L59>M59, (2400-L59+M59)/100, IF(AND(L59="",M59="",L59=M59), "", IF(L59=M59,24,(M59-L59)/100))) -> 24 | O59: 2300 | P59: 2300 | Q59: =IF(O59>P59, (2400-O59+P59)/100, IF(AND(O59="",P59="",O59=P59), "", IF(O59=P59,24,(P59-O59)/100))) -> 24 | R59: 2300 | S59: 2300 | T59: =IF(R59>S59, (2400-R59+S59)/100, IF(AND(R59="",S59="",R59=S59), "", IF(R59=S59,24,(S59-R59)/100))) -> 24 | U59: 272.25 | V59: - | W59: - | AC59: 6 | AD59: 15 | AE59: 15 | AF59: 6 | AG59: 15 | AH59: 6 | AI59: 15
A60: 138.054 | B60: Rejected | C60: 2 | D60: Habitat Energy Limited | E60: AG-HEL00G | F60: DNO connection | G60: DSF: Storage (for export) | H60: 2021-06-30 | I60: 2021-07-31 | J60: 30.06.21 - 31.07.21 (1 months) | K60: As per FFR framework agreement | L60: 2300 | M60: 2300 | N60: 24 | O60: 2300 | P60: 2300 | Q60: 24 | R60: 2300 | S60: 2300 | T60: 24 | U60: 911.89 | V60: - | W60: - | X60: Yes | AC60: 19.6 | AD60: 49 | AE60: 49 | AF60: 19.6 | AG60: 49 | AH60: 19.6 | AI60: 49
A61: 138.055 | B61: Rejected | C61: 2 | D61: Habitat Energy Limited | E61: AG-HEL01H | F61: DNO connection | G61: DSF: Storage (for export) | H61: 2021-06-30 | I61: 2021-07-31 | J61: 30.06.21 - 31.07.21 (1 months) | K61: As per FFR framework agreement | L61: 2300 | M61: 2300 | N61: 24 | O61: 2300 | P61: 2300 | Q61: 24 | R61: 2300 | S61: 2300 | T61: 24 | U61: 364 | V61: - | W61: - | X61: Yes | AC61: 8 | AD61: 20 | AE61: 20 | AF61: 8 | AG61: 20 | AH61: 6.4 | AI61: 16
A62: 138.056 | B62: Accepted | C62: NA | D62: Kiwi Power Ltd | E62: KIWIE-5 | F62: DNO connection | G62: DSF: Storage (onsite) | H62: 2021-06-30 | I62: 2021-07-31 | J62: 30.06.21 - 31.07.21 (1 months) | K62: As per FFR framework agreement | L62: 2300 | M62: 2300 | N62: 24 | O62: 2300 | P62: 2300 | Q62: 24 | R62: 2300 | S62: 2300 | T62: 24 | U62: 44 | AC62: 1.6 | AD62: 4 | AE62: 4 | AF62: 1.6 | AG62: 4 | AH62: 1.6 | AI62: 4
A63: 138.057 | B63: Accepted | C63: NA | D63: Kiwi Power Ltd | E63: KIWIS-1 | F63: DNO connection | G63: Multiple Fuel Type | H63: 2021-07-01 | I63: 2021-07-31 | J63: 01.07.21 - 31.07.21 (1 months) | K63: As per FFR framework agreement | L63: 700 | M63: 1500 | N63: 8 | O63: 700 | P63: 1500 | Q63: 8 | R63: 700 | S63: 1500 | T63: 8 | U63: 52.35 | AO63: 15
A64: 138.058 | B64: Accepted | C64: NA | D64: Kiwi Power Ltd | E64: KIWIS-1 | F64: DNO connection | G64: Multiple Fuel Type | H64: 2021-07-01 | I64: 2021-07-31 | J64: 01.07.21 - 31.07.21 (1 months) | K64: As per FFR framework agreement | L64: 1500 | M64: 2300 | N64: 8 | O64: 1500 | P64: 2300 | Q64: 8 | R64: 1500 | S64: 2300 | T64: 8 | U64: 43.35 | AO64: 15
A65: 138.059 | B65: Rejected | C65: 2 | D65: Kiwi Power Ltd | E65: KIWIE-2 | F65: DNO connection | G65: DSF: Storage (onsite) | H65: 2021-06-30 | I65: 2021-07-31 | J65: 30.06.21 - 31.07.21 (1 months) | K65: As per FFR framework agreement | L65: 2300 | M65: 2300 | N65: 24 | O65: 2300 | P65: 2300 | Q65: 24 | R65: 2300 | S65: 2300 | T65: 24 | U65: 76 | AC65: 1.6 | AD65: 4 | AE65: 4 | AF65: 1.6 | AG65: 4 | AH65: 1.6 | AI65: 4
A66: =A65+0.001 -> 138.06 | B66: Accepted | C66: NA | D66: Kiwi Power Ltd | E66: KIWIDA-1 | F66: DNO connection | G66: DSF: Storage (onsite) | H66: 2021-06-30 | I66: 2021-07-31 | J66: 30.06.21 - 31.07.21 (1 months) | K66: As per FFR framework agreement | L66: 2300 | M66: 2300 | N66: 24 | O66: 2300 | P66: 2300 | Q66: 24 | R66: 2300 | S66: 2300 | T66: 24 | U66: 22 | AC66: 0.8 | AD66: 2 | AE66: 2 | AF66: 0.8 | AG66: 2 | AH66: 0.8 | AI66: 2
A67: =A66+0.001 -> 138.061 | B67: Accepted | C67: NA | D67: Limejump Ltd | E67: LJDYN-2 | F67: DNO connection | G67: DSF: Storage (for export) | H67: 2021-06-30 | I67: 2021-07-31 | J67: 30.06.21 - 31.07.21 (1 months) | K67: As per FFR framework agreement | L67: 2300 | M67: 700 | N67: =IF(L67>M67, (2400-L67+M67)/100, IF(AND(L67="",M67="",L67=M67), "", IF(L67=M67,24,(M67-L67)/100))) -> 8 | O67: 2300 | P67: 700 | Q67: =IF(O67>P67, (2400-O67+P67)/100, IF(AND(O67="",P67="",O67=P67), "", IF(O67=P67,24,(P67-O67)/100))) -> 8 | R67: 2300 | S67: 700 | T67: =IF(R67>S67, (2400-R67+S67)/100, IF(AND(R67="",S67="",R67=S67), "", IF(R67=S67,24,(S67-R67)/100))) -> 8 | U67: 148.98 | AC67: 5.2 | AD67: 13 | AE67: 13 | AF67: 5.2 | AG67: 13 | AH67: 5.2 | AI67: 13 | AP67: H for 30 minutes only
A68: =A65+0.003 -> 138.062 | B68: Accepted | C68: NA | D68: Limejump Ltd | E68: LJDYN-2 | F68: DNO connection | G68: DSF: Storage (for export) | H68: 2021-07-01 | I68: 2021-07-31 | J68: 01.07.21 - 31.07.21 (1 months) | K68: As per FFR framework agreement | L68: 700 | M68: 1500 | N68: =IF(L68>M68, (2400-L68+M68)/100, IF(AND(L68="",M68="",L68=M68), "", IF(L68=M68,24,(M68-L68)/100))) -> 8 | O68: 700 | P68: 1500 | Q68: =IF(O68>P68, (2400-O68+P68)/100, IF(AND(O68="",P68="",O68=P68), "", IF(O68=P68,24,(P68-O68)/100))) -> 8 | R68: 700 | S68: 1500 | T68: =IF(R68>S68, (2400-R68+S68)/100, IF(AND(R68="",S68="",R68=S68), "", IF(R68=S68,24,(S68-R68)/100))) -> 8 | U68: 154.7 | AC68: 5.2 | AD68: 13 | AE68: 13 | AF68: 5.2 | AG68: 13 | AH68: 5.2 | AI68: 13 | AP68: H for 30 minutes only
A69: =A68+0.001 -> 138.063 | B69: Accepted | C69: NA | D69: Limejump Ltd | E69: LJDYN-2 | F69: DNO connection | G69: DSF: Storage (for export) | H69: 2021-07-01 | I69: 2021-07-31 | J69: 01.07.21 - 31.07.21 (1 months) | K69: As per FFR framework agreement | L69: 1500 | M69: 2300 | N69: 8 | O69: 1500 | P69: 2300 | Q69: 8 | R69: 1500 | S69: 2300 | T69: 8 | U69: 148.98 | AC69: 5.2 | AD69: 13 | AE69: 13 | AF69: 5.2 | AG69: 13 | AH69: 5.2 | AI69: 13 | AP69: H for 30 minutes only
A70: =A69+0.001 -> 138.064 | B70: Accepted | C70: NA | D70: Limejump Ltd | E70: LJDYN-4 | F70: DNO connection | G70: DSF: Storage (for export) | H70: 2021-06-30 | I70: 2021-07-31 | J70: =IFERROR(TEXT(H70,"DD.MM.YY")&" - "&TEXT(I70,"DD.MM.YY")&" ("&DATEDIF(H70,I70+1,"m")&" months)","Tender End Date is Before Start Date") -> 30.06.21 - 31.07.21 (1 months) | K70: As per FFR framework agreement | L70: 2300 | M70: 700 | N70: 8 | O70: 2300 | P70: 700 | Q70: 8 | R70: 2300 | S70: 700 | T70: 8 | U70: 70.86 | AC70: 2.4 | AD70: 6 | AE70: 6 | AF70: 2.4 | AG70: 6 | AH70: 2.4 | AI70: 6 | AP70: H for 30 minutes only
A71: =A70+0.001 -> 138.065 | B71: Accepted | C71: NA | D71: Limejump Ltd | E71: LJDYN-4 | F71: DNO connection | G71: DSF: Storage (for export) | H71: 2021-07-01 | I71: 2021-07-31 | J71: 01.07.21 - 31.07.21 (1 months) | K71: As per FFR framework agreement | L71: 700 | M71: 1500 | N71: 8 | O71: 700 | P71: 1500 | Q71: 8 | R71: 700 | S71: 1500 | T71: 8 | U71: 73.44 | AC71: 2.4 | AD71: 6 | AE71: 6 | AF71: 2.4 | AG71: 6 | AH71: 2.4 | AI71: 6 | AP71: H for 30 minutes only
A72: =A71+0.001 -> 138.066 | B72: Accepted | C72: NA | D72: Limejump Ltd | E72: LJDYN-4 | F72: DNO connection | G72: DSF: Storage (for export) | H72: 2021-07-01 | I72: 2021-07-31 | J72: 01.07.21 - 31.07.21 (1 months) | K72: As per FFR framework agreement | L72: 1500 | M72: 2300 | N72: 8 | O72: 1500 | P72: 2300 | Q72: 8 | R72: 1500 | S72: 2300 | T72: 8 | U72: 69.06 | AC72: 2.4 | AD72: 6 | AE72: 6 | AF72: 2.4 | AG72: 6 | AH72: 2.4 | AI72: 6 | AP72: H for 30 minutes only
A73: 138.067 | B73: Accepted | C73: NA | D73: Limejump Ltd | E73: LJDYN-6 | F73: DNO connection | G73: DSF: Storage (for export) | H73: 2021-06-30 | I73: 2021-07-31 | J73: 30.06.21 - 31.07.21 (1 months) | K73: As per FFR framework agreement | L73: 2300 | M73: 700 | N73: 8 | O73: 2300 | P73: 700 | Q73: 8 | R73: 2300 | S73: 700 | T73: 8 | U73: 47.64 | AC73: 1.6 | AD73: 4 | AE73: 4 | AF73: 1.6 | AG73: 4 | AH73: 1.6 | AI73: 4 | AP73: H for 30 minutes only
A74: 138.068 | B74: Accepted | C74: NA | D74: Limejump Ltd | E74: LJDYN-6 | F74: DNO connection | G74: DSF: Storage (for export) | H74: 2021-07-01 | I74: 2021-07-31 | J74: 01.07.21 - 31.07.21 (1 months) | K74: As per FFR framework agreement | L74: 700 | M74: 1500 | N74: 8 | O74: 700 | P74: 1500 | Q74: 8 | R74: 700 | S74: 1500 | T74: 8 | U74: 49.36 | AC74: 1.6 | AD74: 4 | AE74: 4 | AF74: 1.6 | AG74: 4 | AH74: 1.6 | AI74: 4 | AP74: H for 30 minutes only
A75: 138.069 | B75: Accepted | C75: NA | D75: Limejump Ltd | E75: LJDYN-6 | F75: DNO connection | G75: DSF: Storage (for export) | H75: 2021-07-01 | I75: 2021-07-31 | J75: 01.07.21 - 31.07.21 (1 months) | K75: As per FFR framework agreement | L75: 1500 | M75: 2300 | N75: 8 | O75: 1500 | P75: 2300 | Q75: 8 | R75: 1500 | S75: 2300 | T75: 8 | U75: 46.84 | AC75: 1.6 | AD75: 4 | AE75: 4 | AF75: 1.6 | AG75: 4 | AH75: 1.6 | AI75: 4 | AP75: H for 30 minutes only
A76: 138.07 | B76: Rejected | C76: 2 | D76: Limejump Energy Ltd | E76: AG-HLIM04 | F76: TO connection | G76: DSF: Storage (for export) | H76: 2021-06-30 | I76: 2021-07-31 | J76: 30.06.21 - 31.07.21 (1 months) | K76: As per FFR framework agreement | L76: 2300 | M76: 2300 | N76: 24 | O76: 2300 | P76: 2300 | Q76: 24 | R76: 2300 | S76: 2300 | T76: 24 | U76: 1150 | AC76: 20 | AD76: 50 | AE76: 50 | AF76: 20 | AG76: 50 | AH76: 20 | AI76: 50 | AP76: H for 30 minutes only
A77: 138.071 | B77: Accepted | C77: NA | D77: npower | E77: NPFRD-1 | F77: DNO connection | G77: Battery | H77: 2021-06-30 | I77: 2021-07-31 | J77: 30.06.21 - 31.07.21 (1 months) | K77: As per FFR framework agreement | L77: 2300 | M77: 700 | N77: =IF(L77>M77, (2400-L77+M77)/100, IF(AND(L77="",M77="",L77=M77), "", IF(L77=M77,24,(M77-L77)/100))) -> 8 | O77: 2300 | P77: 700 | Q77: =IF(O77>P77, (2400-O77+P77)/100, IF(AND(O77="",P77="",O77=P77), "", IF(O77=P77,24,(P77-O77)/100))) -> 8 | R77: 2300 | S77: 700 | T77: =IF(R77>S77, (2400-R77+S77)/100, IF(AND(R77="",S77="",R77=S77), "", IF(R77=S77,24,(S77-R77)/100))) -> 8 | U77: 46 | AC77: 1.6 | AD77: 4 | AE77: 4 | AF77: 1.6 | AG77: 4 | AH77: 1.6 | AI77: 4 | AL77: A
A78: 138.072 | B78: Accepted | C78: NA | D78: npower | E78: NPFRD-1 | F78: DNO connection | G78: Battery | H78: 2021-07-01 | I78: 2021-07-31 | J78: 01.07.21 - 31.07.21 (1 months) | K78: As per FFR framework agreement | L78: 700 | M78: 1500 | N78: =IF(L78>M78, (2400-L78+M78)/100, IF(AND(L78="",M78="",L78=M78), "", IF(L78=M78,24,(M78-L78)/100))) -> 8 | O78: 700 | P78: 1500 | Q78: =IF(O78>P78, (2400-O78+P78)/100, IF(AND(O78="",P78="",O78=P78), "", IF(O78=P78,24,(P78-O78)/100))) -> 8 | R78: 700 | S78: 1500 | T78: =IF(R78>S78, (2400-R78+S78)/100, IF(AND(R78="",S78="",R78=S78), "", IF(R78=S78,24,(S78-R78)/100))) -> 8 | U78: 46 | AC78: 1.6 | AD78: 4 | AE78: 4 | AF78: 1.6 | AG78: 4 | AH78: 1.6 | AI78: 4 | AL78: B
A79: =A78+0.001 -> 138.073 | B79: Accepted | C79: NA | D79: npower | E79: NPFRD-1 | F79: DNO connection | G79: Battery | H79: 2021-07-01 | I79: 2021-07-31 | J79: 01.07.21 - 31.07.21 (1 months) | K79: As per FFR framework agreement | L79: 1500 | M79: 2300 | N79: 8 | O79: 1500 | P79: 2300 | Q79: 8 | R79: 1500 | S79: 2300 | T79: 8 | U79: 44 | AC79: 1.6 | AD79: 4 | AE79: 4 | AF79: 1.6 | AG79: 4 | AH79: 1.6 | AI79: 4 | AL79: C
A80: 138.074 | B80: Accepted | C80: NA | D80: Open Energi Limited | E80: OPEN-1 | F80: DNO connection | G80: DSF: Load response | H80: 2021-06-30 | I80: 2021-07-31 | J80: 30.06.21 - 31.07.21 (1 months) | K80: As per FFR framework agreement | L80: 2300 | M80: 700 | N80: =IF(L80>M80, (2400-L80+M80)/100, IF(AND(L80="",M80="",L80=M80), "", IF(L80=M80,24,(M80-L80)/100))) -> 8 | O80: 2300 | P80: 700 | Q80: =IF(O80>P80, (2400-O80+P80)/100, IF(AND(O80="",P80="",O80=P80), "", IF(O80=P80,24,(P80-O80)/100))) -> 8 | R80: 2300 | S80: 700 | T80: =IF(R80>S80, (2400-R80+S80)/100, IF(AND(R80="",S80="",R80=S80), "", IF(R80=S80,24,(S80-R80)/100))) -> 8 | U80: 27.4 | AC80: 1.2 | AD80: 3 | AE80: 3 | AF80: 1.2 | AG80: 3 | AH80: 0.8 | AI80: 2 | AL80: A
A81: 138.075 | B81: Accepted | C81: NA | D81: Open Energi Limited | E81: OPEN-1 | F81: DNO connection | G81: DSF: Load response | H81: 2021-07-01 | I81: 2021-07-31 | J81: 01.07.21 - 31.07.21 (1 months) | K81: As per FFR framework agreement | L81: 700 | M81: 1500 | N81: =IF(L81>M81, (2400-L81+M81)/100, IF(AND(L81="",M81="",L81=M81), "", IF(L81=M81,24,(M81-L81)/100))) -> 8 | O81: 700 | P81: 1500 | Q81: =IF(O81>P81, (2400-O81+P81)/100, IF(AND(O81="",P81="",O81=P81), "", IF(O81=P81,24,(P81-O81)/100))) -> 8 | R81: 700 | S81: 1500 | T81: =IF(R81>S81, (2400-R81+S81)/100, IF(AND(R81="",S81="",R81=S81), "", IF(R81=S81,24,(S81-R81)/100))) -> 8 | U81: 27.4 | AC81: 1.2 | AD81: 3 | AE81: 3 | AF81: 1.2 | AG81: 3 | AH81: 0.8 | AI81: 2 | AL81: B
A82: 138.076 | B82: Accepted | C82: NA | D82: Open Energi Limited | E82: OPEN-1 | F82: DNO connection | G82: DSF: Load response | H82: 2021-07-01 | I82: 2021-07-31 | J82: 01.07.21 - 31.07.21 (1 months) | K82: As per FFR framework agreement | L82: 1500 | M82: 1900 | N82: 4 | U82: 21.9 | AC82: 0.8 | AD82: 2 | AE82: 2 | AF82: 0.8 | AG82: 2 | AH82: 0.8 | AI82: 2 | AL82: C
A83: 138.077 | B83: Accepted | C83: NA | D83: Open Energi Limited | E83: OPEN-1 | F83: DNO connection | G83: DSF: Load response | H83: 2021-07-01 | I83: 2021-07-31 | J83: 01.07.21 - 31.07.21 (1 months) | K83: As per FFR framework agreement | L83: 1900 | M83: 2300 | N83: 4 | O83: 1500 | P83: 2300 | Q83: 8 | R83: 1500 | S83: 2300 | T83: 8 | U83: 27.4 | AC83: 1.2 | AD83: 3 | AE83: 3 | AF83: 1.2 | AG83: 3 | AH83: 0.8 | AI83: 2 | AL83: C
A84: 138.078 | B84: Accepted | C84: NA | D84: Open Energi Limited | E84: OPEN-2 | F84: DNO connection | G84: DSF: Storage (onsite) | H84: 2021-06-30 | I84: 2021-07-31 | J84: 30.06.21 - 31.07.21 (1 months) | K84: As per FFR framework agreement | L84: 2300 | M84: 700 | N84: 8 | O84: 2300 | P84: 700 | Q84: 8 | R84: 2300 | S84: 700 | T84: 8 | U84: 36.8 | AC84: 1.2 | AD84: 3 | AE84: 3 | AF84: 1.2 | AG84: 3 | AH84: 1.2 | AI84: 3 | AL84: D
A85: 138.079 | B85: Accepted | C85: NA | D85: Open Energi Limited | E85: OPEN-2 | F85: DNO connection | G85: DSF: Storage (onsite) | H85: 2021-07-01 | I85: 2021-07-31 | J85: 01.07.21 - 31.07.21 (1 months) | K85: As per FFR framework agreement | L85: 700 | M85: 1500 | N85: 8 | O85: 700 | P85: 1500 | Q85: 8 | R85: 700 | S85: 1500 | T85: 8 | U85: 36.8 | AC85: 1.2 | AD85: 3 | AE85: 3 | AF85: 1.2 | AG85: 3 | AH85: 1.2 | AI85: 3 | AL85: E
A86: 138.08 | B86: Accepted | C86: NA | D86: Open Energi Limited | E86: OPEN-2 | F86: DNO connection | G86: DSF: Storage (onsite) | H86: 2021-07-01 | I86: 2021-07-31 | J86: 01.07.21 - 31.07.21 (1 months) | K86: As per FFR framework agreement | L86: 1500 | M86: 2300 | N86: 8 | O86: 1500 | P86: 2300 | Q86: 8 | R86: 1500 | S86: 2300 | T86: 8 | U86: 36.8 | AC86: 1.2 | AD86: 3 | AE86: 3 | AF86: 1.2 | AG86: 3 | AH86: 1.2 | AI86: 3 | AL86: F
A87: 138.081 | B87: Rejected | C87: 2 | D87: Peak Gen | E87: PGFFR-5 | F87: DNO connection | G87: DSF: Distributed generation (for export) | H87: 2021-07-01 | I87: 2021-07-31 | J87: 01.07.21 - 31.07.21 (1 months) | K87: As per FFR framework agreement | L87: 700 | M87: 2300 | N87: 16 | O87: 700 | P87: 2300 | Q87: 16 | R87: 700 | S87: 2300 | T87: 16 | U87: 71.791 | AO87: 18
A88: 138.082 | B88: Rejected | C88: 2 | D88: Peak Gen | E88: PGFFR-6 | F88: DNO connection | G88: DSF: Distributed generation (for export) | H88: 2021-07-01 | I88: 2021-07-31 | J88: 01.07.21 - 31.07.21 (1 months) | K88: As per FFR framework agreement | L88: 700 | M88: 2300 | N88: 16 | O88: 700 | P88: 2300 | Q88: 16 | R88: 700 | S88: 2300 | T88: 16 | U88: 71.792 | AO88: 18
A89: =A88+0.001 -> 138.083 | B89: Accepted | C89: NA | D89: Peak Gen | E89: PGFFR-8 | F89: DNO connection | G89: DSF: Distributed generation (for export) | H89: 2021-07-01 | I89: 2021-07-31 | J89: 01.07.21 - 31.07.21 (1 months) | K89: As per FFR framework agreement | L89: 700 | M89: 1500 | N89: 8 | O89: 700 | P89: 1500 | Q89: 8 | R89: 700 | S89: 1500 | T89: 8 | U89: 71.793 | AO89: 18
A90: 138.084 | B90: Rejected | C90: 2 | D90: Peak Gen | E90: PGFFR-8 | F90: DNO connection | G90: DSF: Distributed generation (for export) | H90: 2021-07-01 | I90: 2021-07-31 | J90: 01.07.21 - 31.07.21 (1 months) | K90: As per FFR framework agreement | L90: 1500 | M90: 2300 | N90: 8 | O90: 1500 | P90: 2300 | Q90: 8 | R90: 1500 | S90: 2300 | T90: 8 | U90: 71.794 | AO90: 18
A91: 138.085 | B91: Rejected | C91: 2 | D91: Peak Gen | E91: PGFFR-7 | F91: DNO connection | G91: DSF: Distributed generation (for export) | H91: 2021-07-01 | I91: 2021-07-31 | J91: 01.07.21 - 31.07.21 (1 months) | K91: As per FFR framework agreement | L91: 700 | M91: 2300 | N91: 16 | O91: 700 | P91: 2300 | Q91: 16 | R91: 700 | S91: 2300 | T91: 16 | U91: 71.795 | AO91: 18
A92: 138.086 | B92: Rejected | C92: 2 | D92: Peak Gen | E92: PGFFR-9 | F92: DNO connection | G92: DSF: Distributed generation (for export) | H92: 2021-07-01 | I92: 2021-07-31 | J92: 01.07.21 - 31.07.21 (1 months) | K92: As per FFR framework agreement | L92: 700 | M92: 2300 | N92: 16 | O92: 700 | P92: 2300 | Q92: 16 | R92: 700 | S92: 2300 | T92: 16 | U92: 71.796 | AO92: 16
A93: =A92+0.001 -> 138.087 | B93: Rejected | C93: 2 | D93: Peak Gen | E93: PGFFR-4 | F93: DNO connection | G93: DSF: Distributed generation (for export) | H93: 2021-07-01 | I93: 2021-07-31 | J93: 01.07.21 - 31.07.21 (1 months) | K93: As per FFR framework agreement | L93: 700 | M93: 2300 | N93: 16 | O93: 700 | P93: 2300 | Q93: 16 | R93: 700 | S93: 2300 | T93: 16 | U93: 71.797 | AO93: 16
A94: 138.088 | B94: Rejected | C94: 2 | D94: Peak Gen | E94: PETDFFR-1 | F94: DNO connection | G94: DSF: Storage (for export) | H94: 2021-06-30 | I94: 2021-07-31 | J94: 30.06.21 - 31.07.21 (1 months) | K94: As per FFR framework agreement | L94: 2300 | M94: 1500 | N94: 16 | O94: 2300 | P94: 1500 | Q94: 16 | R94: 2300 | S94: 1500 | T94: 16 | U94: 58.56 | AC94: 1.6 | AD94: 4 | AE94: 4 | AF94: 1.6 | AG94: 4
A95: 138.089 | B95: Rejected | C95: 2 | D95: Peak Gen | E95: PETDFFR-1 | F95: DNO connection | G95: DSF: Storage (for export) | H95: 2021-07-01 | I95: 2021-07-31 | J95: 01.07.21 - 31.07.21 (1 months) | K95: As per FFR framework agreement | L95: 1500 | M95: 2300 | N95: 8 | O95: 1500 | P95: 2300 | Q95: 8 | R95: 1500 | S95: 2300 | T95: 8 | U95: 55.32 | AC95: 1.6 | AD95: 4 | AE95: 4 | AF95: 1.6 | AG95: 4
A96: 138.09 | B96: Accepted | C96: NA | D96: Social Energy Limited | E96: SOC1-FFR | F96: DNO connection | G96: DSF: Storage (onsite) | H96: 2021-06-30 | I96: 2021-07-31 | J96: 30.06.21 - 31.07.21 (1 months) | K96: As per FFR framework agreement | L96: 2300 | M96: 700 | N96: =IF(L96>M96, (2400-L96+M96)/100, IF(AND(L96="",M96="",L96=M96), "", IF(L96=M96,24,(M96-L96)/100))) -> 8 | O96: 2300 | P96: 700 | Q96: =IF(O96>P96, (2400-O96+P96)/100, IF(AND(O96="",P96="",O96=P96), "", IF(O96=P96,24,(P96-O96)/100))) -> 8 | R96: 2300 | S96: 700 | T96: =IF(R96>S96, (2400-R96+S96)/100, IF(AND(R96="",S96="",R96=S96), "", IF(R96=S96,24,(S96-R96)/100))) -> 8 | U96: 10.49 | AC96: 0.4 | AD96: 1 | AE96: 1 | AF96: 0.4 | AG96: 1 | AH96: 0.4 | AI96: 1 | AP96: H for only 30min
A97: 138.091 | B97: Accepted | C97: NA | D97: Social Energy Limited | E97: SOC1-FFR | F97: DNO connection | G97: DSF: Storage (onsite) | H97: 2021-07-01 | I97: 2021-07-31 | J97: 01.07.21 - 31.07.21 (1 months) | K97: As per FFR framework agreement | L97: 700 | M97: 1100 | N97: =IF(L97>M97, (2400-L97+M97)/100, IF(AND(L97="",M97="",L97=M97), "", IF(L97=M97,24,(M97-L97)/100))) -> 4 | O97: 700 | P97: 1100 | Q97: =IF(O97>P97, (2400-O97+P97)/100, IF(AND(O97="",P97="",O97=P97), "", IF(O97=P97,24,(P97-O97)/100))) -> 4 | R97: 700 | S97: 1100 | T97: =IF(R97>S97, (2400-R97+S97)/100, IF(AND(R97="",S97="",R97=S97), "", IF(R97=S97,24,(S97-R97)/100))) -> 4 | U97: 11.79 | AC97: 0.4 | AD97: 1 | AE97: 1 | AF97: 0.4 | AG97: 1 | AH97: 0.4 | AI97: 1 | AP97: H for only 30min
A98: 138.092 | B98: Accepted | C98: NA | D98: Social Energy Limited | E98: SOC1-FFR | F98: DNO connection | G98: DSF: Storage (onsite) | H98: 2021-07-01 | I98: 2021-07-31 | J98: 01.07.21 - 31.07.21 (1 months) | K98: As per FFR framework agreement | L98: 1100 | M98: 1500 | N98: 4 | O98: 1100 | P98: 1500 | Q98: 4 | R98: 1100 | S98: 1500 | T98: 4 | U98: 3.92 | AC98: 0 | AD98: 0 | AE98: 0 | AF98: 0 | AG98: 0 | AH98: 0.4 | AI98: 1 | AP98: H for only 30min
A99: 138.093 | B99: Accepted | C99: NA | D99: Social Energy Limited | E99: SOC2-FFR | F99: DNO connection | G99: DSF: Storage (onsite) | H99: 2021-06-30 | I99: 2021-07-31 | J99: 30.06.21 - 31.07.21 (1 months) | K99: As per FFR framework agreement | L99: 2300 | M99: 700 | N99: 8 | O99: 2300 | P99: 700 | Q99: 8 | R99: 2300 | S99: 700 | T99: 8 | U99: 10.62 | AC99: 0.4 | AD99: 1 | AE99: 1 | AF99: 0.4 | AG99: 1 | AH99: 0.4 | AI99: 1 | AP99: H for only 30min
A100: 138.094 | B100: Accepted | C100: NA | D100: Social Energy Limited | E100: SOC2-FFR | F100: DNO connection | G100: DSF: Storage (onsite) | H100: 2021-07-01 | I100: 2021-07-31 | J100: 01.07.21 - 31.07.21 (1 months) | K100: As per FFR framework agreement | L100: 700 | M100: 1100 | N100: 4 | O100: 700 | P100: 1100 | Q100: 4 | R100: 700 | S100: 1100 | T100: 4 | U100: 11.72 | AC100: 0.4 | AD100: 1 | AE100: 1 | AF100: 0.4 | AG100: 1 | AH100: 0.4 | AI100: 1 | AP100: H for only 30min
A101: 138.095 | B101: Accepted | C101: NA | D101: Social Energy Limited | E101: SOC2-FFR | F101: DNO connection | G101: DSF: Storage (onsite) | H101: 2021-07-01 | I101: 2021-07-31 | J101: 01.07.21 - 31.07.21 (1 months) | K101: As per FFR framework agreement | L101: 1100 | M101: 1500 | N101: 4 | O101: 1100 | P101: 1500 | Q101: 4 | R101: 1100 | S101: 1500 | T101: 4 | U101: 3.92 | AC101: 0 | AD101: 0 | AE101: 0 | AF101: 0 | AG101: 0 | AH101: 0.4 | AI101: 1 | AP101: H for only 30min
A102: 138.096 | B102: Accepted | C102: NA | D102: Social Energy Limited | E102: SOC3-FFR | F102: DNO connection | G102: DSF: Storage (onsite) | H102: 2021-06-30 | I102: 2021-07-31 | J102: 30.06.21 - 31.07.21 (1 months) | K102: As per FFR framework agreement | L102: 2300 | M102: 700 | N102: 8 | O102: 2300 | P102: 700 | Q102: 8 | R102: 2300 | S102: 700 | T102: 8 | U102: 10.75 | AC102: 0.4 | AD102: 1 | AE102: 1 | AF102: 0.4 | AG102: 1 | AH102: 0.4 | AI102: 1 | AP102: H for only 30min
A103: 138.097 | B103: Accepted | C103: NA | D103: Social Energy Limited | E103: SOC3-FFR | F103: DNO connection | G103: DSF: Storage (onsite) | H103: 2021-07-01 | I103: 2021-07-31 | J103: 01.07.21 - 31.07.21 (1 months) | K103: As per FFR framework agreement | L103: 700 | M103: 1100 | N103: 4 | O103: 700 | P103: 1100 | Q103: 4 | R103: 700 | S103: 1100 | T103: 4 | U103: 11.67 | AC103: 0.4 | AD103: 1 | AE103: 1 | AF103: 0.4 | AG103: 1 | AH103: 0.4 | AI103: 1 | AP103: H for only 30min
A104: 138.098 | B104: Accepted | C104: NA | D104: Social Energy Limited | E104: SOC3-FFR | F104: DNO connection | G104: DSF: Storage (onsite) | H104: 2021-07-01 | I104: 2021-07-31 | J104: 01.07.21 - 31.07.21 (1 months) | K104: As per FFR framework agreement | L104: 1100 | M104: 1500 | N104: 4 | O104: 1100 | P104: 1500 | Q104: 4 | R104: 1100 | S104: 1500 | T104: 4 | U104: 3.92 | AC104: 0 | AD104: 0 | AE104: 0 | AF104: 0 | AG104: 0 | AH104: 0.4 | AI104: 1 | AP104: H for only 30min
A105: 138.099 | B105: Accepted | C105: NA | D105: Social Energy Limited | E105: SOC4-FFR | F105: DNO connection | G105: DSF: Storage (onsite) | H105: 2021-06-30 | I105: 2021-07-31 | J105: 30.06.21 - 31.07.21 (1 months) | K105: As per FFR framework agreement | L105: 2300 | M105: 700 | N105: 8 | O105: 2300 | P105: 700 | Q105: 8 | R105: 2300 | S105: 700 | T105: 8 | U105: 10.86 | AC105: 0.4 | AD105: 1 | AE105: 1 | AF105: 0.4 | AG105: 1 | AH105: 0.4 | AI105: 1 | AP105: H for only 30min
A106: 138.1 | B106: Accepted | C106: NA | D106: Social Energy Limited | E106: SOC4-FFR | F106: DNO connection | G106: DSF: Storage (onsite) | H106: 2021-07-01 | I106: 2021-07-31 | J106: 01.07.21 - 31.07.21 (1 months) | K106: As per FFR framework agreement | L106: 700 | M106: 1100 | N106: 4 | O106: 700 | P106: 1100 | Q106: 4 | R106: 700 | S106: 1100 | T106: 4 | U106: 11.56 | AC106: 0.4 | AD106: 1 | AE106: 1 | AF106: 0.4 | AG106: 1 | AH106: 0.4 | AI106: 1 | AP106: H for only 30min
A107: 138.101 | B107: Accepted | C107: NA | D107: Social Energy Limited | E107: SOC4-FFR | F107: DNO connection | G107: DSF: Storage (onsite) | H107: 2021-07-01 | I107: 2021-07-31 | J107: 01.07.21 - 31.07.21 (1 months) | K107: As per FFR framework agreement | L107: 1100 | M107: 1500 | N107: 4 | O107: 1100 | P107: 1500 | Q107: 4 | R107: 1100 | S107: 1500 | T107: 4 | U107: 3.92 | AC107: 0 | AD107: 0 | AE107: 0 | AF107: 0 | AG107: 0 | AH107: 0.4 | AI107: 1 | AP107: H for only 30min
A108: 138.102 | B108: Accepted | C108: NA | D108: Social Energy Limited | E108: SOC5-FFR | F108: DNO connection | G108: DSF: Storage (onsite) | H108: 2021-06-30 | I108: 2021-07-31 | J108: 30.06.21 - 31.07.21 (1 months) | K108: As per FFR framework agreement | L108: 2300 | M108: 700 | N108: 8 | O108: 2300 | P108: 700 | Q108: 8 | R108: 2300 | S108: 700 | T108: 8 | U108: 10.98 | AC108: 0.4 | AD108: 1 | AE108: 1 | AF108: 0.4 | AG108: 1 | AH108: 0.4 | AI108: 1 | AP108: H for only 30min
A109: 138.103 | B109: Accepted | C109: NA | D109: Social Energy Limited | E109: SOC5-FFR | F109: DNO connection | G109: DSF: Storage (onsite) | H109: 2021-07-01 | I109: 2021-07-31 | J109: 01.07.21 - 31.07.21 (1 months) | K109: As per FFR framework agreement | L109: 700 | M109: 1100 | N109: 4 | O109: 700 | P109: 1100 | Q109: 4 | R109: 700 | S109: 1100 | T109: 4 | U109: 11.49 | AC109: 0.4 | AD109: 1 | AE109: 1 | AF109: 0.4 | AG109: 1 | AH109: 0.4 | AI109: 1 | AP109: H for only 30min
A110: 138.104 | B110: Accepted | C110: NA | D110: Social Energy Limited | E110: SOC5-FFR | F110: DNO connection | G110: DSF: Storage (onsite) | H110: 2021-07-01 | I110: 2021-07-31 | J110: 01.07.21 - 31.07.21 (1 months) | K110: As per FFR framework agreement | L110: 1100 | M110: 1500 | N110: 4 | O110: 1100 | P110: 1500 | Q110: 4 | R110: 1100 | S110: 1500 | T110: 4 | U110: 3.92 | AC110: 0 | AD110: 0 | AE110: 0 | AF110: 0 | AG110: 0 | AH110: 0.4 | AI110: 1 | AP110: H for only 30min
A111: 138.105 | B111: Accepted | C111: NA | D111: Social Energy Limited | E111: SOC6-FFR | F111: DNO connection | G111: DSF: Storage (onsite) | H111: 2021-06-30 | I111: 2021-07-31 | J111: 30.06.21 - 31.07.21 (1 months) | K111: As per FFR framework agreement | L111: 2300 | M111: 700 | N111: 8 | O111: 2300 | P111: 700 | Q111: 8 | R111: 2300 | S111: 700 | T111: 8 | U111: 11.12 | AC111: 0.4 | AD111: 1 | AE111: 1 | AF111: 0.4 | AG111: 1 | AH111: 0.4 | AI111: 1 | AP111: H for only 30min
A112: 138.106 | B112: Accepted | C112: NA | D112: Social Energy Limited | E112: SOC6-FFR | F112: DNO connection | G112: DSF: Storage (onsite) | H112: 2021-07-01 | I112: 2021-07-31 | J112: 01.07.21 - 31.07.21 (1 months) | K112: As per FFR framework agreement | L112: 700 | M112: 1100 | N112: 4 | O112: 700 | P112: 1100 | Q112: 4 | R112: 700 | S112: 1100 | T112: 4 | U112: 11.41 | AC112: 0.4 | AD112: 1 | AE112: 1 | AF112: 0.4 | AG112: 1 | AH112: 0.4 | AI112: 1 | AP112: H for only 30min
A113: 138.107 | B113: Accepted | C113: NA | D113: Social Energy Limited | E113: SOC6-FFR | F113: DNO connection | G113: DSF: Storage (onsite) | H113: 2021-07-01 | I113: 2021-07-31 | J113: 01.07.21 - 31.07.21 (1 months) | K113: As per FFR framework agreement | L113: 1100 | M113: 1500 | N113: 4 | O113: 1100 | P113: 1500 | Q113: 4 | R113: 1100 | S113: 1500 | T113: 4 | U113: 3.92 | AC113: 0 | AD113: 0 | AE113: 0 | AF113: 0 | AG113: 0 | AH113: 0.4 | AI113: 1 | AP113: H for only 30min
A114: 138.108 | B114: Accepted | C114: NA | D114: Social Energy Limited | E114: SOC7-FFR | F114: DNO connection | G114: DSF: Storage (onsite) | H114: 2021-06-30 | I114: 2021-07-31 | J114: 30.06.21 - 31.07.21 (1 months) | K114: As per FFR framework agreement | L114: 2300 | M114: 700 | N114: 8 | O114: 2300 | P114: 700 | Q114: 8 | R114: 2300 | S114: 700 | T114: 8 | U114: 11.21 | AC114: 0.4 | AD114: 1 | AE114: 1 | AF114: 0.4 | AG114: 1 | AH114: 0.4 | AI114: 1 | AP114: H for only 30min
A115: 138.109 | B115: Accepted | C115: NA | D115: Social Energy Limited | E115: SOC7-FFR | F115: DNO connection | G115: DSF: Storage (onsite) | H115: 2021-07-01 | I115: 2021-07-31 | J115: 01.07.21 - 31.07.21 (1 months) | K115: As per FFR framework agreement | L115: 700 | M115: 1100 | N115: 4 | O115: 700 | P115: 1100 | Q115: 4 | R115: 700 | S115: 1100 | T115: 4 | U115: 11.37 | AC115: 0.4 | AD115: 1 | AE115: 1 | AF115: 0.4 | AG115: 1 | AH115: 0.4 | AI115: 1 | AP115: H for only 30min
A116: 138.11 | B116: Accepted | C116: NA | D116: Social Energy Limited | E116: SOC7-FFR | F116: DNO connection | G116: DSF: Storage (onsite) | H116: 2021-07-01 | I116: 2021-07-31 | J116: 01.07.21 - 31.07.21 (1 months) | K116: As per FFR framework agreement | L116: 1100 | M116: 1500 | N116: 4 | O116: 1100 | P116: 1500 | Q116: 4 | R116: 1100 | S116: 1500 | T116: 4 | U116: 3.92 | AC116: 0 | AD116: 0 | AE116: 0 | AF116: 0 | AG116: 0 | AH116: 0.4 | AI116: 1 | AP116: H for only 30min
A117: 138.111 | B117: Accepted | C117: NA | D117: Social Energy Limited | E117: SOC8-FFR | F117: DNO connection | G117: DSF: Storage (onsite) | H117: 2021-06-30 | I117: 2021-07-31 | J117: 30.06.21 - 31.07.21 (1 months) | K117: As per FFR framework agreement | L117: 2300 | M117: 700 | N117: 8 | O117: 2300 | P117: 700 | Q117: 8 | R117: 2300 | S117: 700 | T117: 8 | U117: 11.35 | AC117: 0.4 | AD117: 1 | AE117: 1 | AF117: 0.4 | AG117: 1 | AH117: 0.4 | AI117: 1 | AP117: H for only 30min
A118: 138.112 | B118: Accepted | C118: NA | D118: Social Energy Limited | E118: SOC8-FFR | F118: DNO connection | G118: DSF: Storage (onsite) | H118: 2021-07-01 | I118: 2021-07-31 | J118: 01.07.21 - 31.07.21 (1 months) | K118: As per FFR framework agreement | L118: 700 | M118: 1100 | N118: 4 | O118: 700 | P118: 1100 | Q118: 4 | R118: 700 | S118: 1100 | T118: 4 | U118: 11.28 | AC118: 0.4 | AD118: 1 | AE118: 1 | AF118: 0.4 | AG118: 1 | AH118: 0.4 | AI118: 1 | AP118: H for only 30min
A119: 138.113 | B119: Accepted | C119: NA | D119: Social Energy Limited | E119: SOC8-FFR | F119: DNO connection | G119: DSF: Storage (onsite) | H119: 2021-07-01 | I119: 2021-07-31 | J119: 01.07.21 - 31.07.21 (1 months) | K119: As per FFR framework agreement | L119: 1100 | M119: 1500 | N119: 4 | O119: 1100 | P119: 1500 | Q119: 4 | R119: 1100 | S119: 1500 | T119: 4 | U119: 3.92 | AC119: 0 | AD119: 0 | AE119: 0 | AF119: 0 | AG119: 0 | AH119: 0.4 | AI119: 1 | AP119: H for only 30min
A120: 138.114 | B120: Accepted | C120: NA | D120: Social Energy Limited | E120: SOC9-FFR | F120: DNO connection | G120: DSF: Storage (onsite) | H120: 2021-06-30 | I120: 2021-07-31 | J120: 30.06.21 - 31.07.21 (1 months) | K120: As per FFR framework agreement | L120: 2300 | M120: 700 | N120: 8 | O120: 2300 | P120: 700 | Q120: 8 | R120: 2300 | S120: 700 | T120: 8 | U120: 11.45 | AC120: 0.4 | AD120: 1 | AE120: 1 | AF120: 0.4 | AG120: 1 | AH120: 0.4 | AI120: 1 | AP120: H for only 30min
A121: 138.115 | B121: Accepted | C121: NA | D121: Social Energy Limited | E121: SOC9-FFR | F121: DNO connection | G121: DSF: Storage (onsite) | H121: 2021-07-01 | I121: 2021-07-31 | J121: 01.07.21 - 31.07.21 (1 months) | K121: As per FFR framework agreement | L121: 700 | M121: 1100 | N121: 4 | O121: 700 | P121: 1100 | Q121: 4 | R121: 700 | S121: 1100 | T121: 4 | U121: 11.19 | AC121: 0.4 | AD121: 1 | AE121: 1 | AF121: 0.4 | AG121: 1 | AH121: 0.4 | AI121: 1 | AP121: H for only 30min
A122: 138.116 | B122: Accepted | C122: NA | D122: Social Energy Limited | E122: SOC9-FFR | F122: DNO connection | G122: DSF: Storage (onsite) | H122: 2021-07-01 | I122: 2021-07-31 | J122: 01.07.21 - 31.07.21 (1 months) | K122: As per FFR framework agreement | L122: 1100 | M122: 1500 | N122: 4 | O122: 1100 | P122: 1500 | Q122: 4 | R122: 1100 | S122: 1500 | T122: 4 | U122: 3.93 | AC122: 0 | AD122: 0 | AE122: 0 | AF122: 0 | AG122: 0 | AH122: 0.4 | AI122: 1 | AP122: H for only 30min
A123: 138.117 | B123: Rejected | C123: 2 | D123: Pelham Storage Limited | E123: PLHM-1 | F123: DNO connection | G123: DSF: Storage (for export) | H123: 2021-06-30 | I123: 2021-07-31 | J123: 30.06.21 - 31.07.21 (1 months) | K123: As per FFR framework agreement | L123: 2300 | M123: 2300 | N123: =IF(L123>M123, (2400-L123+M123)/100, IF(AND(L123="",M123="",L123=M123), "", IF(L123=M123,24,(M123-L123)/100))) -> 24 | O123: 2300 | P123: 2300 | Q123: =IF(O123>P123, (2400-O123+P123)/100, IF(AND(O123="",P123="",O123=P123), "", IF(O123=P123,24,(P123-O123)/100))) -> 24 | R123: 2300 | S123: 2300 | T123: =IF(R123>S123, (2400-R123+S123)/100, IF(AND(R123="",S123="",R123=S123), "", IF(R123=S123,24,(S123-R123)/100))) -> 24 | U123: 912 | AC123: 19.2 | AD123: 48 | AE123: 48 | AF123: 19.2 | AG123: 48 | AH123: 19.2 | AI123: 48
A124: 138.118 | B124: Accepted | C124: NA | D124: Statkraft Markets GmbH | E124: SKFT-1 | F124: DNO Connection | G124: DSF: Storage (for export) | H124: 2021-06-30 | I124: 2021-07-31 | J124: 30.06.21 - 31.07.21 (1 months) | K124: As per FFR framework agreement | L124: 2300 | M124: 700 | N124: 8 | O124: 2300 | P124: 700 | Q124: 8 | R124: 2300 | S124: 700 | T124: =IF(R124>S124, (2400-R124+S124)/100, IF(AND(R124="",S124="",R124=S124), "", IF(R124=S124,24,(S124-R124)/100))) -> 8 | U124: 65.58 | AC124: 2.4 | AD124: 6 | AE124: 6 | AF124: 2.4 | AG124: 6 | AH124: 2.4 | AI124: 6
A125: 138.119 | B125: Accepted | C125: NA | D125: Statkraft Markets GmbH | E125: SKFT-1 | F125: DNO Connection | G125: DSF: Storage (for export) | H125: 2021-07-01 | I125: 2021-07-31 | J125: 01.07.21 - 31.07.21 (1 months) | K125: As per FFR framework agreement | L125: 700 | M125: 1500 | N125: 8 | O125: 700 | P125: 1500 | Q125: 8 | R125: 700 | S125: 1500 | T125: =IF(R125>S125, (2400-R125+S125)/100, IF(AND(R125="",S125="",R125=S125), "", IF(R125=S125,24,(S125-R125)/100))) -> 8 | U125: 55.35 | AC125: 2 | AD125: 5 | AE125: 5 | AF125: 2 | AG125: 5 | AH125: 2 | AI125: 5
A126: 138.12 | B126: Accepted | C126: NA | D126: Statkraft Markets GmbH | E126: SKFT-1 | F126: DNO Connection | G126: DSF: Storage (for export) | H126: 2021-07-01 | I126: 2021-07-31 | J126: 01.07.21 - 31.07.21 (1 months) | K126: As per FFR framework agreement | L126: 1500 | M126: 2300 | N126: 8 | O126: 1500 | P126: 2300 | Q126: 8 | R126: 1500 | S126: 2300 | T126: 8 | U126: 52.45 | AC126: 2 | AD126: 5 | AE126: 5 | AF126: 2 | AG126: 5 | AH126: 2 | AI126: 5
A127: 138.121 | B127: Rejected | C127: 2 | D127: Statkraft Markets GmbH | E127: AG-MSTK01 | F127: DNO Connection | G127: DSF: Storage (for export) | H127: 2021-06-30 | I127: 2021-07-31 | J127: 30.06.21 - 31.07.21 (1 months) | K127: As per FFR framework agreement | L127: 2300 | M127: 2300 | N127: 24 | O127: 2300 | P127: 2300 | Q127: 24 | R127: 2300 | S127: 2300 | T127: 24 | U127: 1008 | AC127: 19.2 | AD127: 48 | AE127: 48 | AF127: 19.2 | AG127: 48 | AH127: 19.2 | AI127: 48
A128: 138.122 | B128: Accepted | C128: NA | D128: Upside Energy | E128: UPEN-2 | F128: DNO connection | G128: DSF: Storage (onsite) | H128: 2021-06-30 | I128: 2021-07-31 | J128: 30.06.21 - 31.07.21 (1 months) | K128: As per FFR framework agreement | L128: 2300 | M128: 1100 | N128: =IF(L128>M128, (2400-L128+M128)/100, IF(AND(L128="",M128="",L128=M128), "", IF(L128=M128,24,(M128-L128)/100))) -> 12 | O128: 2300 | P128: 1100 | Q128: =IF(O128>P128, (2400-O128+P128)/100, IF(AND(O128="",P128="",O128=P128), "", IF(O128=P128,24,(P128-O128)/100))) -> 12 | R128: 2300 | S128: 1100 | T128: =IF(R128>S128, (2400-R128+S128)/100, IF(AND(R128="",S128="",R128=S128), "", IF(R128=S128,24,(S128-R128)/100))) -> 12 | U128: 11 | AC128: 0.4 | AD128: 1 | AE128: 1 | AF128: 0.4 | AG128: 1 | AH128: 0.4 | AI128: 1
A129: 138.123 | B129: Accepted | C129: NA | D129: Upside Energy | E129: UPEN-3 | F129: DNO connection | G129: DSF: Storage (onsite) | H129: 2021-06-30 | I129: 2021-07-31 | J129: 30.06.21 - 31.07.21 (1 months) | K129: As per FFR framework agreement | L129: 2300 | M129: 700 | N129: =IF(L129>M129, (2400-L129+M129)/100, IF(AND(L129="",M129="",L129=M129), "", IF(L129=M129,24,(M129-L129)/100))) -> 8 | O129: 2300 | P129: 700 | Q129: =IF(O129>P129, (2400-O129+P129)/100, IF(AND(O129="",P129="",O129=P129), "", IF(O129=P129,24,(P129-O129)/100))) -> 8 | R129: 2300 | S129: 700 | T129: =IF(R129>S129, (2400-R129+S129)/100, IF(AND(R129="",S129="",R129=S129), "", IF(R129=S129,24,(S129-R129)/100))) -> 8 | U129: 10.5 | AC129: 0.4 | AD129: 1 | AE129: 1 | AF129: 0.4 | AG129: 1 | AH129: 0.4 | AI129: 1
A130: 138.124 | B130: Rejected | C130: 2 | D130: BESS HoldCo 3 Ltd | E130: DBESSA-33 | F130: DNO connection | G130: Battery | H130: 2021-06-30 | I130: 2021-07-31 | J130: 30.06.21 - 31.07.21 (1 months) | K130: As per FFR framework agreement | L130: 2300 | M130: 2300 | N130: =IF(L130>M130, (2400-L130+M130)/100, IF(AND(L130="",M130="",L130=M130), "", IF(L130=M130,24,(M130-L130)/100))) -> 24 | O130: 2300 | P130: 2300 | Q130: =IF(O130>P130, (2400-O130+P130)/100, IF(AND(O130="",P130="",O130=P130), "", IF(O130=P130,24,(P130-O130)/100))) -> 24 | R130: 2300 | S130: 2300 | T130: =IF(R130>S130, (2400-R130+S130)/100, IF(AND(R130="",S130="",R130=S130), "", IF(R130=S130,24,(S130-R130)/100))) -> 24 | U130: 162 | AC130: 3.6 | AD130: 9 | AE130: 9 | AF130: 3.6 | AG130: 9 | AH130: 3.6 | AI130: 9 | AL130: A
A131: 138.125 | B131: Rejected | C131: 2 | D131: BESS HoldCo 3 Ltd | E131: DBESSC-33 | F131: DNO connection | G131: Battery | H131: 2021-06-30 | I131: 2021-07-31 | J131: 30.06.21 - 31.07.21 (1 months) | K131: As per FFR framework agreement | L131: 2300 | M131: 2300 | N131: =IF(L131>M131, (2400-L131+M131)/100, IF(AND(L131="",M131="",L131=M131), "", IF(L131=M131,24,(M131-L131)/100))) -> 24 | O131: 2300 | P131: 2300 | Q131: =IF(O131>P131, (2400-O131+P131)/100, IF(AND(O131="",P131="",O131=P131), "", IF(O131=P131,24,(P131-O131)/100))) -> 24 | R131: 2300 | S131: 2300 | T131: =IF(R131>S131, (2400-R131+S131)/100, IF(AND(R131="",S131="",R131=S131), "", IF(R131=S131,24,(S131-R131)/100))) -> 24 | U131: 180 | AC131: 4 | AD131: 10 | AE131: 10 | AF131: 4 | AG131: 10 | AH131: 4 | AI131: 10 | AL131: B
A132: 138.126 | B132: Rejected | C132: 2 | D132: BESS HoldCo 3 Ltd | E132: DBESSF-33 | F132: DNO connection | G132: Battery | H132: 2021-06-30 | I132: 2021-07-31 | J132: 30.06.21 - 31.07.21 (1 months) | K132: As per FFR framework agreement | L132: 2300 | M132: 2300 | N132: 24 | O132: 2300 | P132: 2300 | Q132: 24 | R132: 2300 | S132: 2300 | T132: 24 | U132: 180 | AC132: 4 | AD132: 10 | AE132: 10 | AF132: 4 | AG132: 10 | AH132: 4 | AI132: 10 | AL132: C
A133: 138.127 | B133: Rejected | C133: 2 | D133: BESS HoldCo 3 Ltd | E133: DBESSH-33 | F133: DNO connection | G133: Battery | H133: 2021-06-30 | I133: 2021-07-31 | J133: =IFERROR(TEXT(H133,"DD.MM.YY")&" - "&TEXT(I133,"DD.MM.YY")&" ("&DATEDIF(H133,I133+1,"m")&" months)","Tender End Date is Before Start Date") -> 30.06.21 - 31.07.21 (1 months) | K133: As per FFR framework agreement | L133: 2300 | M133: 2300 | N133: 24 | O133: 2300 | P133: 2300 | Q133: 24 | R133: 2300 | S133: 2300 | T133: 24 | U133: 180 | AC133: 4 | AD133: 10 | AE133: 10 | AF133: 4 | AG133: 10 | AH133: 4 | AI133: 10 | AL133: D
A134: 138.128 | B134: Rejected | C134: 2 | D134: BESS HoldCo 3 Ltd | E134: DBESSE-33 | F134: DNO connection | G134: Battery | H134: 2021-06-30 | I134: 2021-07-31 | J134: 30.06.21 - 31.07.21 (1 months) | K134: As per FFR framework agreement | L134: 2300 | M134: 2300 | N134: 24 | O134: 2300 | P134: 2300 | Q134: 24 | R134: 2300 | S134: 2300 | T134: 24 | U134: 180 | AC134: 4 | AD134: 10 | AE134: 10 | AF134: 4 | AG134: 10 | AH134: 4 | AI134: 10 | AL134: E
A135: 138.129 | B135: Rejected | C135: 2 | D135: BESS HoldCo 3 Ltd | E135: DBESSG-33 | F135: DNO connection | G135: Battery | H135: 2021-06-30 | I135: 2021-07-31 | J135: 30.06.21 - 31.07.21 (1 months) | K135: As per FFR framework agreement | L135: 2300 | M135: 2300 | N135: 24 | O135: 2300 | P135: 2300 | Q135: 24 | R135: 2300 | S135: 2300 | T135: 24 | U135: 180 | AC135: 4 | AD135: 10 | AE135: 10 | AF135: 4 | AG135: 10 | AH135: 4 | AI135: 10 | AL135: F
A136: 138.13 | B136: Accepted | C136: NA | D136: BESS HoldCo 1 Limited | E136: DBESS-11 | F136: DNO connection | G136: Battery | H136: 2021-06-30 | I136: 2021-07-31 | J136: 30.06.21 - 31.07.21 (1 months) | K136: As per FFR framework agreement | L136: 2300 | M136: 2300 | N136: 24 | O136: 2300 | P136: 2300 | Q136: 24 | R136: 2300 | S136: 2300 | T136: 24 | U136: 59.75 | AC136: 2 | AD136: 5 | AE136: 5 | AF136: 2 | AG136: 5 | AH136: 2 | AI136: 5 | AL136: G
A137: 138.131 | B137: Accepted | C137: NA | D137: Brook Green Innovations | E137: BGIN-1 | F137: DNO connection | G137: DSF: Storage (for export) | H137: 2021-06-30 | I137: 2021-07-31 | J137: 30.06.21 - 31.07.21 (1 months) | K137: As per FFR framework agreement | L137: 2300 | M137: 700 | N137: 8 | O137: 2300 | P137: 700 | Q137: 8 | R137: 2300 | S137: 700 | T137: 8 | U137: 8 | AC137: 0.4 | AD137: 1 | AE137: 1 | AF137: 0.4 | AG137: 1 | AH137: 0 | AI137: 0
A139: Rejection Codes | B139: Code | D139: Reason
B140: 1 | C140: Beneficial | E140: 1.1 | F140: Req. satisifed by more beneficial bids
E141: 1.2 | F141: No outstanding req.
E142: 1.3 | F142: Desired procurement volume already met
E143: 1.4 | F143: Formed part of AON. Not collectively beneficial
B144: 2 | C144: Price not beneificial across tendered period
B145: 3 | C145: Does not meet tender prerequisites
B146: 4 | C146: Multiple tenders received for the same unit
B147: 5 | C147: Beyond desired procument volume
